Workbook

Sheet ACOMPANHAMENTO
A1: AGENTE | B1: PREVISÃO | C1: VLR PREVISTO | D1: VLR EFETIVO | E1: FINAL? | F1: SICAD | G1: CLIENTE | H1: CONTRATO | I1: FICHA | J1: QUITAÇÃO | K1: STATUS PAGAMENTO | L1: DIAS ATRASO | M1: POTOCOLO | N1: SITUAÇÃO | O1: NO S476? | P1: OBSERVAÇÃO
A2: FRANCISCO HENRIQUE DE ARAUJO NETO | B2: 2023-01-01 | C2: 203.62 | D2: 203.62 | E2: N | F2: 82453614 | G2: JOSE IVAN GOMES | H2: B300141901 | I2: 1 | J2: LIQUIDADA | K2: PAGO | N2: PAGO | P2: LIQUIDADA
A3: FRANCISCO HENRIQUE DE ARAUJO NETO | B3: 2023-01-04 | C3: 190.71 | D3: 190.71 | E3: N | F3: 78047651 | G3: MARIA DALVANIRA GALDINO | H3: B000000401 | I3: 12 | J3: LIQUIDADA | K3: PAGO | N3: PAGO | P3: LIQUIDADA
A4: FRANCISCO HENRIQUE DE ARAUJO NETO | B4: 2023-01-04 | C4: 197.02 | D4: 197.02 | E4: N | F4: 78452679 | G4: FRANCISCA ROSEMEYRE VILA BARACHO | H4: B000000701 | I4: 6 | J4: LIQUIDADA | K4: PAGO | N4: PAGO | P4: LIQUIDADA
A5: FRANCISCO HENRIQUE DE ARAUJO NETO | B5: 2023-01-05 | C5: 3000 | D5: 3000 | E5: N | F5: 104641022 | G5: MARLUCIA VIEIRA DE MELO TIAGO | H5: C200001501 | I5: 1 | J5: LIQUIDADA | K5: PAGO | N5: PAGO | P5: LIQUIDADA
A6: FRANCISCO HENRIQUE DE ARAUJO NETO | B6: 2023-01-05 | C6: 3000 | D6: 3000 | E6: N | F6: 117574202 | G6: JOSE CARLOTA JUNIOR | H6: C200001601 | I6: 1 | J6: LIQUIDADA | K6: PAGO | N6: PAGO | P6: Boleto entregue, confirmou o pagamento na data prevista;
A7: FRANCISCO HENRIQUE DE ARAUJO NETO | B7: 2023-01-05 | C7: 3000 | D7: 3000 | E7: N | F7: 139261549 | G7: GERSON BATISTA DANTAS RODRIGUES | H7: C200001701 | I7: 1 | J7: LIQUIDADA | K7: PAGO | N7: PAGO | P7: Boleto entregue, confirmou o pagamento na data prevista;
A8: FRANCISCO HENRIQUE DE ARAUJO NETO | B8: 2023-01-05 | C8: 3000 | D8: 3000 | E8: N | F8: 139666796 | G8: LUCAS MATHEUS DE OLIVEIRA SILVA | H8: C200001801 | I8: 1 | J8: LIQUIDADA | K8: PAGO | N8: PAGO | P8: Boleto entregue, confirmou o pagamento na data prevista;
A9: FRANCISCO HENRIQUE DE ARAUJO NETO | B9: 2023-01-05 | C9: 96.55 | D9: 96.55 | E9: N | F9: 43884782 | G9: MARIA GORET DE SOUZA BEZERRA | H9: B200028101 | I9: 4 | J9: LIQUIDADA | K9: PAGO | N9: PAGO | P9: LIQUIDADA
A10: FRANCISCO HENRIQUE DE ARAUJO NETO | B10: 2023-01-06 | C10: 126.22 | D10: 126.22 | E10: N | F10: 90629866 | G10: REGIVAN CARDOSO CUNHA | H10: B200008601 | I10: 2 | J10: LIQUIDADA | K10: PAGO | N10: PAGO | P10: LIQUIDADA
A11: FRANCISCO HENRIQUE DE ARAUJO NETO | B11: 2023-01-07 | C11: 2511.8 | D11: 2511.8 | E11: N | F11: 139713614 | G11: ALUIZIO DE FRANCA | H11: C100000901 | I11: 3 | J11: LIQUIDADA | K11: PAGO | N11: PAGO | P11: PARCELA PAGA
A12: FRANCISCO HENRIQUE DE ARAUJO NETO | B12: 2023-01-07 | C12: 2500 | D12: 2500 | E12: S | F12: 22280382 | G12: PATRICIA CARLA DA SILVA MEDINO | H12: C100000701 | I12: 1 | J12: LIQUIDADA | K12: PAGO | N12: PAGO | P12: LIQUIDADA
A13: FRANCISCO HENRIQUE DE ARAUJO NETO | B13: 2023-01-08 | C13: 332.66 | D13: 0 | E13: N | F13: 19394295 | G13: MARIA IVANEIDE DA SILVA | H13: B400003001 | I13: 5 | J13: EM SER | K13: NÃO PAGO | L13: -218 | N13: NÃO PAGO | P13: Boleto entregue, sem perspectiva de pagamento
A14: FRANCISCO HENRIQUE DE ARAUJO NETO | B14: 2023-01-09 | C14: 1250 | D14: 1250 | E14: N | F14: 147123525 | G14: FELIPE HENRIQUE DA SILVA | H14: C100098901 | I14: 1 | J14: LIQUIDADA | K14: PAGO | N14: PAGO | P14: LIQUIDADA
A15: FRANCISCO HENRIQUE DE ARAUJO NETO | B15: 2023-01-09 | C15: 116.7 | D15: 116.7 | E15: N | F15: 49690365 | G15: MIRIA SILVA DE LIMA | H15: B200011601 | I15: 3 | J15: LIQUIDADA | K15: PAGO | N15: PAGO | P15: LIQUIDADA
A16: FRANCISCO HENRIQUE DE ARAUJO NETO | B16: 2023-01-09 | C16: 126.17 | D16: 126.17 | E16: N | F16: 90694498 | G16: SILVIO CESAR FERREIRA DE CARVALHO | H16: B200016001 | I16: 2 | J16: LIQUIDADA | K16: PAGO | N16: PAGO | P16: LIQUIDADA
A17: FRANCISCO HENRIQUE DE ARAUJO NETO | B17: 2023-01-10 | C17: 3000 | D17: 3000 | E17: N | F17: 139825210 | G17: PEDRO HENRIQUE RODRIGUES CALIXTO | H17: C200002001 | I17: 1 | J17: LIQUIDADA | K17: PAGO | N17: PAGO | P17: Boleto entregue, confirmou o pagamento na data prevista;
A18: FRANCISCO HENRIQUE DE ARAUJO NETO | B18: 2023-01-10 | C18: 3000 | D18: 3000 | E18: N | F18: 61368437 | G18: PAULO BARBOZA DE AQUINO | H18: C200002401 | I18: 1 | J18: LIQUIDADA | K18: PAGO | N18: PAGO | P18: LIQUIDADA
A19: FRANCISCO HENRIQUE DE ARAUJO NETO | B19: 2023-01-10 | C19: 3000 | D19: 0 | E19: N | F19: 81846263 | G19: JOSE ROMUALDO DA SILVA | H19: C200003401 | I19: 1 | J19: EM SER | K19: NÃO PAGO | L19: -216 | N19: PAGO | P19: Cliente avisado por telefone, confirmou pagamento na data prevista
A20: FRANCISCO HENRIQUE DE ARAUJO NETO | B20: 2023-01-12 | C20: 2500 | D20: 2500 | E20: S | F20: 115662504 | G20: FRANCISCO RONNYS DE SOUZA | H20: C100002901 | I20: 1 | J20: LIQUIDADA | K20: PAGO | N20: PAGO | P20: Boleto entregue, confirmou o pagamento na data prevista;
A21: FRANCISCO HENRIQUE DE ARAUJO NETO | B21: 2023-01-12 | C21: 2500 | D21: 2500 | E21: S | F21: 122482649 | G21: MARIA DO SOCORRO DA ROCHA DE SOUZA ANDRADE | H21: C100003701 | I21: 1 | J21: LIQUIDADA | K21: PAGO | N21: PAGO | P21: Boleto entregue, confirmou o pagamento na data prevista;
A22: FRANCISCO HENRIQUE DE ARAUJO NETO | B22: 2023-01-12 | C22: 2500 | D22: 2500 | E22: S | F22: 142640176 | G22: DALISON LUIZ DA FONSECA | H22: C100003001 | I22: 1 | J22: LIQUIDADA | K22: PAGO | N22: PAGO | P22: LIQUIDADA
A23: FRANCISCO HENRIQUE DE ARAUJO NETO | B23: 2023-01-12 | C23: 2500 | D23: 2500 | E23: S | F23: 42418574 | G23: MARINEIDE MARTINS DA SILVA | H23: C100002201 | I23: 1 | J23: LIQUIDADA | K23: PAGO | N23: PAGO | P23: LIQUIDADA
A24: FRANCISCO HENRIQUE DE ARAUJO NETO | B24: 2023-01-12 | C24: 2500 | D24: 2500 | E24: S | F24: 98030489 | G24: JACIANE DA COSTA FERREIRA SILVA | H24: C100002801 | I24: 1 | J24: LIQUIDADA | K24: PAGO | N24: PAGO | P24: Boleto entregue, confirmou o pagamento na data prevista;
A25: FRANCISCO HENRIQUE DE ARAUJO NETO | B25: 2023-01-13 | C25: 3000 | D25: 3000 | E25: N | F25: 115882680 | G25: JOSE ANGELO DA SILVA JUNIOR | H25: C200003801 | I25: 1 | J25: EM SER | K25: PAGO | N25: PAGO | P25: Boleto enviado via Whatsapp, cliente confirmou o pagamento
A26: FRANCISCO HENRIQUE DE ARAUJO NETO | B26: 2023-01-13 | C26: 3000 | D26: 3000 | E26: N | F26: 4891560 | G26: VALMIR COSME DA SILVA | H26: C200006901 | I26: 1 | J26: LIQUIDADA | K26: PAGO | N26: PAGO | P26: LIQUIDADA
A27: FRANCISCO HENRIQUE DE ARAUJO NETO | B27: 2023-01-13 | C27: 3000 | D27: 3000 | E27: N | F27: 54263397 | G27: MARIA DAS DORES MELO | H27: C200006801 | I27: 1 | J27: LIQUIDADA | K27: PAGO | N27: PAGO | P27: LIQUIDADA
A28: FRANCISCO HENRIQUE DE ARAUJO NETO | B28: 2023-01-13 | C28: 2500 | D28: 321.8 | E28: S | F28: 79531646 | G28: LUCIANA DA COSTA | H28: C100008701 | I28: 1 | J28: EM SER | K28: PAGO PARCIALMENTE | L28: -213 | N28: PAGO PARCIALMENTE | P28: Vai amortizar o valor R$300,00 e renegociar na data 13/01 solicitação assinada;
A29: FRANCISCO HENRIQUE DE ARAUJO NETO | B29: 2023-01-13 | C29: 352.88 | D29: 0 | E29: N | F29: 79972733 | G29: ZANIELE CICERA DOS SANTOS | H29: B500001101 | I29: 4 | J29: EM SER | K29: NÃO PAGO | L29: -213 | N29: NÃO PAGO | P29: evadida
A30: FRANCISCO HENRIQUE DE ARAUJO NETO | B30: 2023-01-13 | C30: 148.13 | D30: 148.13 | E30: N | F30: 87673638 | G30: JOSIVALDO DE SOUTO LIMA | H30: B600002301 | I30: 2 | J30: EM SER | K30: PAGO | N30: PAGO | P30: Cliente avisado por telefone, confirmou pagamento na data prevista
A31: FRANCISCO HENRIQUE DE ARAUJO NETO | B31: 2023-01-13 | C31: 3000 | D31: 3000 | E31: N | F31: 93705796 | G31: ERECE ROSA MATIAS COSTA MARIANO | H31: C200006001 | I31: 1 | J31: LIQUIDADA | K31: PAGO | N31: PAGO | P31: Cliente avisado por telefone, confirmou pagamento na data prevista
A32: FRANCISCO HENRIQUE DE ARAUJO NETO | B32: 2023-01-15 | C32: 2500 | D32: 2500 | E32: S | F32: 115662561 | G32: MARIA CARLA FERNANDES | H32: C100010401 | I32: 1 | J32: LIQUIDADA | K32: PAGO | N32: PAGO | P32: Boleto entregue, confirmou o pagamento na data prevista;
A33: FRANCISCO HENRIQUE DE ARAUJO NETO | B33: 2023-01-15 | C33: 2500 | D33: 2500 | E33: S | F33: 142809474 | G33: MARIA AUDIARA BRAZ DA SILVA | H33: C100010001 | I33: 1 | J33: LIQUIDADA | K33: PAGO | N33: PAGO | P33: LIQUIDADA
A34: FRANCISCO HENRIQUE DE ARAUJO NETO | B34: 2023-01-15 | C34: 2500 | D34: 2500 | E34: S | F34: 63823603 | G34: JORGE LUIZ DA SILVA | H34: C100005101 | I34: 1 | J34: LIQUIDADA | K34: PAGO | N34: PAGO | P34: Boleto entregue, confirmou o pagamento na data prevista;
A35: FRANCISCO HENRIQUE DE ARAUJO NETO | B35: 2023-01-15 | C35: 500 | D35: 500 | E35: S | F35: 79531232 | G35: ADAILTON JOSE MARTINS | H35: C100009001 | I35: 1 | J35: LIQUIDADA | K35: PAGO | N35: PAGO | P35: LIQUIDADA
A36: FRANCISCO HENRIQUE DE ARAUJO NETO | B36: 2023-01-15 | C36: 126.17 | D36: 126.17 | E36: N | F36: 90843798 | G36: LUCIANO ALVES DA SILVA | H36: B200016201 | I36: 2 | J36: LIQUIDADA | K36: PAGO | N36: PAGO | P36: LIQUIDADA
A37: FRANCISCO HENRIQUE DE ARAUJO NETO | B37: 2023-01-15 | C37: 2500 | D37: 2500 | E37: S | F37: 93705796 | G37: ERECE ROSA MATIAS COSTA MARIANO | H37: C100005001 | I37: 1 | J37: LIQUIDADA | K37: PAGO | N37: PAGO | P37: LIQUIDADA
A38: FRANCISCO HENRIQUE DE ARAUJO NETO | B38: 2023-01-16 | C38: 126.06 | D38: 126.06 | E38: N | F38: 74791427 | G38: MARIA DAS DORES SILVA CAMARA | H38: B200044701 | I38: 2 | J38: LIQUIDADA | K38: PAGO | N38: PAGO | P38: LIQUIDADA
A39: FRANCISCO HENRIQUE DE ARAUJO NETO | B39: 2023-01-17 | C39: 3000 | D39: 3000 | E39: N | F39: 101891398 | G39: VILANEIDE CAMPELO DA SILVA RODRIGUES | H39: C200006301 | I39: 1 | J39: LIQUIDADA | K39: PAGO | N39: PAGO | P39: Cliente avisado por telefone, confirmou pagamento na data prevista
A40: FRANCISCO HENRIQUE DE ARAUJO NETO | B40: 2023-01-17 | C40: 3000 | D40: 3000 | E40: N | F40: 117303859 | G40: WITEMBERGUE TAVARES DE ARAUJO | H40: C200004601 | I40: 1 | J40: EM SER | K40: PAGO | N40: PAGO | P40: Cliente avisado por telefone, confirmou pagamento na data prevista
A41: FRANCISCO HENRIQUE DE ARAUJO NETO | B41: 2023-01-17 | C41: 3000 | D41: 3000 | E41: N | F41: 122315807 | G41: LOURINETE SOUZA DA SILVA | H41: C200006601 | I41: 1 | J41: EM SER | K41: PAGO | N41: PAGO | P41: Cliente avisado por telefone, confirmou pagamento na data prevista
A42: FRANCISCO HENRIQUE DE ARAUJO NETO | B42: 2023-01-17 | C42: 2000 | D42: 2000 | E42: N | F42: 124492026 | G42: ALDERI BARBOSA DA FONSECA | H42: C200006501 | I42: 1 | J42: LIQUIDADA | K42: PAGO | N42: PAGO | P42: Cliente avisado por telefone, confirmou pagamento na data prevista
A43: FRANCISCO HENRIQUE DE ARAUJO NETO | B43: 2023-01-17 | C43: 3000 | D43: 3000 | E43: N | F43: 131111304 | G43: NAZARE MIGUEL DOS SANTOS NASCIMENTO | H43: C200007001 | I43: 1 | J43: LIQUIDADA | K43: PAGO | N43: PAGO | P43: Cliente avisado por telefone, confirmou pagamento na data prevista
A44: FRANCISCO HENRIQUE DE ARAUJO NETO | B44: 2023-01-17 | C44: 3000 | D44: 3000 | E44: N | F44: 88236930 | G44: CARMINO PEREIRA DA SILVA | H44: C200006701 | I44: 1 | J44: EM SER | K44: PAGO | N44: PAGO | P44: Cliente avisado por telefone, confirmou pagamento na data prevista
A45: FRANCISCO HENRIQUE DE ARAUJO NETO | B45: 2023-01-18 | C45: 2500 | D45: 2500 | E45: S | F45: 118928175 | G45: LEYLA RAIANNE DE OLIVEIRA SILVA RODRIGUES | H45: C100010301 | I45: 1 | J45: LIQUIDADA | K45: PAGO | N45: PAGO | P45: Boleto final entregue, proposta renovada/prospectada;
A46: FRANCISCO HENRIQUE DE ARAUJO NETO | B46: 2023-01-18 | C46: 2500 | D46: 2500 | E46: S | F46: 142773514 | G46: DUCINEIDE ROBERTO DA SILVA LOPES | H46: C100010501 | I46: 1 | J46: LIQUIDADA | K46: PAGO | N46: PAGO | P46: LIQUIDADA
A47: FRANCISCO HENRIQUE DE ARAUJO NETO | B47: 2023-01-19 | C47: 2500 | D47: 2500 | E47: S | F47: 102167079 | G47: FRANCISCO CHAGAS DA CUNHA | H47: C100009801 | I47: 1 | J47: LIQUIDADA | K47: PAGO | N47: PAGO | P47: LIQUIDADA
A48: FRANCISCO HENRIQUE DE ARAUJO NETO | B48: 2023-01-19 | C48: 2500 | D48: 2500 | E48: S | F48: 102167525 | G48: FRANCISCA MARTINIANO CAVALCANTE DA CUNHA | H48: C100009901 | I48: 1 | J48: LIQUIDADA | K48: PAGO | N48: PAGO | P48: LIQUIDADA
A49: FRANCISCO HENRIQUE DE ARAUJO NETO | B49: 2023-01-19 | C49: 2500 | D49: 2500 | E49: S | F49: 135497576 | G49: LUCINEIDE BARBOSA DE SOUZA | H49: C100010801 | I49: 1 | J49: LIQUIDADA | K49: PAGO | N49: PAGO | P49: LIQUIDADA
A50: FRANCISCO HENRIQUE DE ARAUJO NETO | B50: 2023-01-19 | C50: 2500 | D50: 2500 | E50: S | F50: 135795623 | G50: TAUANA CRIS LIMA BEZERRA | H50: C100009701 | I50: 1 | J50: LIQUIDADA | K50: PAGO | N50: PAGO | P50: LIQUIDADA
A51: FRANCISCO HENRIQUE DE ARAUJO NETO | B51: 2023-01-19 | C51: 2500 | D51: 2500 | E51: S | F51: 142841923 | G51: JOSE CARLOS DA SILVA | H51: C100009601 | I51: 1 | J51: LIQUIDADA | K51: PAGO | N51: PAGO | P51: LIQUIDADA
A52: FRANCISCO HENRIQUE DE ARAUJO NETO | B52: 2023-01-19 | C52: 2500 | D52: 2500 | E52: S | F52: 29859386 | G52: RITA PEREIRA FIGUEIREDO | H52: C100010901 | I52: 1 | J52: LIQUIDADA | K52: PAGO | N52: PAGO | P52: LIQUIDADA
A53: FRANCISCO HENRIQUE DE ARAUJO NETO | B53: 2023-01-19 | C53: 2500 | D53: 2500 | E53: S | F53: 33120494 | G53: MARIA DAS NEVES DE SOUZA SILVA | H53: C100010701 | I53: 1 | J53: LIQUIDADA | K53: PAGO | N53: PAGO | P53: LIQUIDADA
A54: FRANCISCO HENRIQUE DE ARAUJO NETO | B54: 2023-01-19 | C54: 2500 | D54: 2500 | E54: S | F54: 62756630 | G54: JOSELINA GALDINO DOS SANTOS | H54: C100010201 | I54: 1 | J54: LIQUIDADA | K54: PAGO | N54: PAGO | P54: LIQUIDADA
A55: FRANCISCO HENRIQUE DE ARAUJO NETO | B55: 2023-01-19 | C55: 2500 | D55: 2500 | E55: S | F55: 63999205 | G55: JOAO BATISTA DA SILVA | H55: C100011401 | I55: 1 | J55: LIQUIDADA | K55: PAGO | N55: PAGO | P55: LIQUIDADA
A56: FRANCISCO HENRIQUE DE ARAUJO NETO | B56: 2023-01-19 | C56: 2500 | D56: 2500 | E56: S | F56: 74397951 | G56: MARIA GORET CAVALCANTE | H56: C100010101 | I56: 1 | J56: LIQUIDADA | K56: PAGO | N56: PAGO | P56: Boleto entregue, confirmou o pagamento na data prevista;
A57: FRANCISCO HENRIQUE DE ARAUJO NETO | B57: 2023-01-19 | C57: 2500 | D57: 2500 | E57: S | F57: 75500744 | G57: GERLANIA FERREIRA DA FONSECA | H57: C100010601 | I57: 1 | J57: LIQUIDADA | K57: PAGO | N57: PAGO | P57: LIQUIDADA
A58: FRANCISCO HENRIQUE DE ARAUJO NETO | B58: 2023-01-19 | C58: 2000 | D58: 2000 | E58: S | F58: 77205805 | G58: MARIA DA CONCEICAO DE SOUZA MORAIS | H58: C100011001 | I58: 1 | J58: LIQUIDADA | K58: PAGO | N58: PAGO | P58: Cliente avisado por telefone, confirmou pagamento na data prevista
A59: FRANCISCO HENRIQUE DE ARAUJO NETO | B59: 2023-01-19 | C59: 372.47 | D59: 0 | E59: N | F59: 91243246 | G59: MARIA ELISONEIDE HENRIQUE | H59: B800005501 | I59: 2 | J59: EM SER | K59: NÃO PAGO | L59: -207
A60: FRANCISCO HENRIQUE DE ARAUJO NETO | B60: 2023-01-20 | C60: 3000 | D60: 3000 | E60: N | F60: 128097243 | G60: VANESSA DAYANE DA SILVA AQUINO | H60: C200008001 | I60: 1 | J60: EM SER | K60: PAGO | N60: PAGO | P60: Cliente avisado por telefone, confirmou pagamento na data prevista
A61: FRANCISCO HENRIQUE DE ARAUJO NETO | B61: 2023-01-20 | C61: 1500 | D61: 1500 | E61: N | F61: 136186525 | G61: LANUZIA PEREIRA DA SILVA | H61: C200008201 | I61: 1 | J61: LIQUIDADA | K61: PAGO | N61: PAGO | P61: Boleto entregue, confirmou o pagamento na data prevista;
A62: FRANCISCO HENRIQUE DE ARAUJO NETO | B62: 2023-01-20 | C62: 1500 | D62: 1500 | E62: N | F62: 13980917 | G62: GENIVAL AGENALDO DA FONSECA | H62: C200008101 | I62: 1 | J62: LIQUIDADA | K62: PAGO | N62: PAGO | P62: LIQUIDADA
A63: FRANCISCO HENRIQUE DE ARAUJO NETO | B63: 2023-01-20 | C63: 1500 | D63: 1500 | E63: N | F63: 15219348 | G63: ADEMILTON FERREIRA DA SILVA | H63: C200007901 | I63: 1 | J63: EM SER | K63: PAGO | N63: PAGO | P63: Cliente avisado por telefone, confirmou pagamento na data prevista
A64: FRANCISCO HENRIQUE DE ARAUJO NETO | B64: 2023-01-20 | C64: 3000 | D64: 3000 | E64: N | F64: 29859386 | G64: RITA PEREIRA FIGUEIREDO | H64: C200007801 | I64: 1 | J64: EM SER | K64: PAGO | N64: PAGO | P64: Cliente avisado por telefone, confirmou pagamento na data prevista
A65: FRANCISCO HENRIQUE DE ARAUJO NETO | B65: 2023-01-20 | C65: 2500 | D65: 2500 | E65: S | F65: 45743671 | G65: AGENOR AVARISTO DE SOUZA | H65: C100011101 | I65: 1 | J65: LIQUIDADA | K65: PAGO | N65: PAGO | P65: LIQUIDADA
A66: FRANCISCO HENRIQUE DE ARAUJO NETO | B66: 2023-01-20 | C66: 2500 | D66: 2500 | E66: N | F66: 47082375 | G66: ALCIVAN MARTINS DE FRANCA | H66: C200008301 | I66: 1 | J66: EM SER | K66: PAGO | N66: PAGO | P66: Cliente avisado por telefone, confirmou pagamento na data prevista
A67: FRANCISCO HENRIQUE DE ARAUJO NETO | B67: 2023-01-20 | C67: 173.1 | D67: 173.1 | E67: N | F67: 73779027 | G67: MARIA JOSINETE DA SILVA | H67: B000005401 | I67: 4 | J67: LIQUIDADA | K67: PAGO | N67: PAGO | P67: LIQUIDADA
A68: FRANCISCO HENRIQUE DE ARAUJO NETO | B68: 2023-01-20 | C68: 2500 | D68: 2500 | E68: S | F68: 76563428 | G68: JOAO BATISTA DA FONSECA | H68: C100011201 | I68: 1 | J68: LIQUIDADA | K68: PAGO | N68: PAGO | P68: LIQUIDADA
A69: FRANCISCO HENRIQUE DE ARAUJO NETO | B69: 2023-01-24 | C69: 3000 | D69: 3000 | E69: N | F69: 108149196 | G69: FRANCISCA MARIANO DA SILVA | H69: C200012201 | I69: 1 | J69: LIQUIDADA | K69: PAGO | N69: PAGO | P69: Boleto final entregue, proposta renovada/prospectada;
A70: FRANCISCO HENRIQUE DE ARAUJO NETO | B70: 2023-01-24 | C70: 3000 | D70: 3000 | E70: N | F70: 123651770 | G70: JOSE NELSON DA CUNHA | H70: C200012301 | I70: 1 | J70: EM SER | K70: PAGO | N70: PAGO | P70: Cliente avisado por telefone, confirmou pagamento na data prevista
A71: FRANCISCO HENRIQUE DE ARAUJO NETO | B71: 2023-01-24 | C71: 3000 | D71: 3000 | E71: N | F71: 124123712 | G71: MARIA IVANICE CUNHA | H71: C200012101 | I71: 1 | J71: EM SER | K71: PAGO | N71: PAGO | P71: Cliente avisado por telefone, confirmou pagamento na data prevista
A72: FRANCISCO HENRIQUE DE ARAUJO NETO | B72: 2023-01-24 | C72: 3000 | D72: 3000 | E72: N | F72: 151379724 | G72: LILIA RAFAELA DA COSTA | H72: C200012001 | I72: 1 | J72: LIQUIDADA | K72: PAGO | N72: PAGO | P72: Cliente avisado por telefone, confirmou pagamento na data prevista
A73: FRANCISCO HENRIQUE DE ARAUJO NETO | B73: 2023-01-24 | C73: 80.43 | D73: 80.43 | E73: N | F73: 73770463 | G73: FRANCISCA MARIA DE ARAUJO MORAIS | H73: B100008301 | I73: 4 | J73: EM SER | K73: PAGO | N73: PAGO | P73: Cliente avisado por telefone, confirmou pagamento na data prevista
A74: FRANCISCO HENRIQUE DE ARAUJO NETO | B74: 2023-01-24 | C74: 121.71 | D74: 121.71 | E74: N | F74: 77076503 | G74: AMANDA MARIA DE MELO | H74: B200013001 | I74: 3 | J74: LIQUIDADA | K74: PAGO | N74: PAGO | P74: LIQUIDADA
A75: FRANCISCO HENRIQUE DE ARAUJO NETO | B75: 2023-01-24 | C75: 199.32 | D75: 199.32 | E75: N | F75: 78447398 | G75: RENATO JOSE DE OLIVEIRA DE MORAIS | H75: B100007701 | I75: 4 | J75: LIQUIDADA | K75: PAGO | N75: PAGO | P75: LIQUIDADA
A76: FRANCISCO HENRIQUE DE ARAUJO NETO | B76: 2023-01-25 | C76: 2500 | D76: 2500 | E76: S | F76: 129076030 | G76: JOAO BATISTA PEREIRA | H76: C100014201 | I76: 1 | J76: LIQUIDADA | K76: PAGO | N76: PAGO | P76: LIQUIDADA
A77: FRANCISCO HENRIQUE DE ARAUJO NETO | B77: 2023-01-25 | C77: 2512.05 | D77: 2512.05 | E77: N | F77: 131655052 | G77: IVANILSON CESARIO DANTAS | H77: C100014701 | I77: 2 | J77: LIQUIDADA | K77: PAGO | N77: PAGO | P77: LIQUIDADA
A78: FRANCISCO HENRIQUE DE ARAUJO NETO | B78: 2023-01-25 | C78: 2500 | D78: 2500 | E78: S | F78: 43494103 | G78: FRANCISCA JOSE DA SILVA | H78: C100016401 | I78: 1 | J78: LIQUIDADA | K78: PAGO | N78: PAGO | P78: Boleto entregue, confirmou o pagamento na data prevista;
A79: FRANCISCO HENRIQUE DE ARAUJO NETO | B79: 2023-01-25 | C79: 2500 | D79: 2500 | E79: S | F79: 4954392 | G79: SABINO ANTONIO MARTINS | H79: C100014801 | I79: 1 | J79: LIQUIDADA | K79: PAGO | N79: PAGO | P79: Boleto final entregue, proposta renovada/prospectada;
A80: FRANCISCO HENRIQUE DE ARAUJO NETO | B80: 2023-01-25 | C80: 2500 | D80: 2500 | E80: S | F80: 56802739 | G80: JOSE HENRIQUE DE MACENA | H80: C100014301 | I80: 1 | J80: LIQUIDADA | K80: PAGO | N80: PAGO | P80: LIQUIDADA
A81: FRANCISCO HENRIQUE DE ARAUJO NETO | B81: 2023-01-25 | C81: 2500 | D81: 2500 | E81: S | F81: 59807123 | G81: FRANCINETE ARAUJO DE MEDEIROS | H81: C100014401 | I81: 1 | J81: LIQUIDADA | K81: PAGO | N81: PAGO | P81: Boleto final entregue, proposta renovada/prospectada;
A82: FRANCISCO HENRIQUE DE ARAUJO NETO | B82: 2023-01-25 | C82: 2500 | D82: 2500 | E82: S | F82: 61368437 | G82: PAULO BARBOZA DE AQUINO | H82: C100011901 | I82: 1 | J82: LIQUIDADA | K82: PAGO | N82: PAGO | P82: LIQUIDADA
A83: FRANCISCO HENRIQUE DE ARAUJO NETO | B83: 2023-01-25 | C83: 2500 | D83: 2500 | E83: S | F83: 77669323 | G83: ROSINALDO GONZAGA DOS SANTOS | H83: C100014601 | I83: 1 | J83: LIQUIDADA | K83: PAGO | N83: PAGO | P83: Boleto final entregue, proposta renovada/prospectada;
A84: FRANCISCO HENRIQUE DE ARAUJO NETO | B84: 2023-01-25 | C84: 2500 | D84: 2500 | E84: S | F84: 78574837 | G84: LEODETE XAVIER DE ARAUJO MARIANO | H84: C100014501 | I84: 1 | J84: LIQUIDADA | K84: PAGO | N84: PAGO | P84: Boleto final entregue, proposta renovada/prospectada;
A85: FRANCISCO HENRIQUE DE ARAUJO NETO | B85: 2023-01-25 | C85: 2500 | D85: 2500 | E85: S | F85: 96460845 | G85: EDILMA BENTO DA SILVA | H85: C100014101 | I85: 1 | J85: LIQUIDADA | K85: PAGO | N85: PAGO | P85: LIQUIDADA
A86: FRANCISCO HENRIQUE DE ARAUJO NETO | B86: 2023-01-26 | C86: 282.88 | D86: 282.88 | E86: N | F86: 109295451 | G86: ROSIMARIA MEDINO DA SILVA | H86: B600011201 | I86: 4 | J86: EM SER | K86: PAGO | N86: PAGO | P86: Cliente avisado por telefone, confirmou pagamento na data prevista
A87: FRANCISCO HENRIQUE DE ARAUJO NETO | B87: 2023-01-26 | C87: 2500 | D87: 2500 | E87: S | F87: 12294815 | G87: JOANA ABREU DE MORAIS | H87: C100016601 | I87: 1 | J87: LIQUIDADA | K87: PAGO | N87: PAGO | P87: Boleto final entregue, proposta renovada/prospectada;
A88: FRANCISCO HENRIQUE DE ARAUJO NETO | B88: 2023-01-26 | C88: 3000 | D88: 3000 | E88: N | F88: 135795623 | G88: TAUANA CRIS LIMA BEZERRA | H88: C200012501 | I88: 1 | J88: LIQUIDADA | K88: PAGO | N88: PAGO | P88: Cliente avisado por telefone, confirmou pagamento na data prevista
A89: FRANCISCO HENRIQUE DE ARAUJO NETO | B89: 2023-01-26 | C89: 3000 | D89: 3000 | E89: N | F89: 142841923 | G89: JOSE CARLOS DA SILVA | H89: C200012401 | I89: 1 | J89: EM SER | K89: PAGO | N89: PAGO | P89: Cliente avisado por telefone, confirmou pagamento na data prevista
A90: FRANCISCO HENRIQUE DE ARAUJO NETO | B90: 2023-01-26 | C90: 2500 | D90: 2500 | E90: S | F90: 143035863 | G90: FRANCISCO CANINDE DA COSTA | H90: C100016001 | I90: 1 | J90: LIQUIDADA | K90: PAGO | N90: PAGO | P90: LIQUIDADA
A91: FRANCISCO HENRIQUE DE ARAUJO NETO | B91: 2023-01-26 | C91: 3000 | D91: 3000 | E91: N | F91: 143035863 | G91: FRANCISCO CANINDE DA COSTA | H91: C200012601 | I91: 1 | J91: LIQUIDADA | K91: PAGO | N91: PAGO | P91: Boleto final entregue, proposta renovada/prospectada;
A92: FRANCISCO HENRIQUE DE ARAUJO NETO | B92: 2023-01-26 | C92: 174.93 | D92: 174.93 | E92: N | F92: 18694786 | G92: ERIVANALDO MEDINO DA SILVA | H92: B600011301 | I92: 2 | J92: EM SER | K92: PAGO | N92: PAGO | P92: Cliente avisado por telefone, confirmou pagamento na data prevista
A93: FRANCISCO HENRIQUE DE ARAUJO NETO | B93: 2023-01-26 | C93: 2500 | D93: 2500 | E93: S | F93: 77063295 | G93: CEZARINO QUIRINO DA SILVA NETO | H93: C100015401 | I93: 1 | J93: LIQUIDADA | K93: PAGO | N93: PAGO | P93: LIQUIDADA
A94: FRANCISCO HENRIQUE DE ARAUJO NETO | B94: 2023-01-26 | C94: 1750 | D94: 1750 | E94: N | F94: 77779528 | G94: ANGELA MARIA DE MEDEIROS | H94: C200011901 | I94: 1 | J94: EM SER | K94: PAGO | N94: PAGO | P94: Cliente avisado por telefone, confirmou pagamento na data prevista
A95: FRANCISCO HENRIQUE DE ARAUJO NETO | B95: 2023-01-26 | C95: 1861.67 | D95: 1861.67 | E95: N | F95: 80987902 | G95: MARIA LUCIMAR DE MARIA | H95: C100016201 | I95: 2 | J95: EM SER | K95: PAGO | N95: PAGO | P95: Cliente avisado por telefone, confirmou pagamento na data prevista
A96: FRANCISCO HENRIQUE DE ARAUJO NETO | B96: 2023-01-26 | C96: 448.45 | D96: 448.45 | E96: N | F96: 84236082 | G96: JOSE OSVALDO DA SILVA | H96: B800006201 | I96: 6 | J96: EM SER | K96: PAGO | N96: PAGO | P96: Cliente avisado por telefone, confirmou pagamento na data prevista
A97: FRANCISCO HENRIQUE DE ARAUJO NETO | B97: 2023-01-26 | C97: 205.31 | D97: 205.31 | E97: N | F97: 93778819 | G97: MARILENILZA MARTINS DE FRANCA | H97: B800006101 | I97: 2 | J97: EM SER | K97: PAGO | N97: PAGO | P97: Cliente avisado por telefone, confirmou pagamento na data prevista
A98: FRANCISCO HENRIQUE DE ARAUJO NETO | B98: 2023-01-27 | C98: 3000 | D98: 3000 | E98: N | F98: 100615111 | G98: FRANCISCO FEITOZA | H98: C200016101 | I98: 1 | J98: LIQUIDADA | K98: PAGO | N98: PAGO | P98: PARCELA PAGA
A99: FRANCISCO HENRIQUE DE ARAUJO NETO | B99: 2023-01-27 | C99: 2500 | D99: 2500 | E99: S | F99: 108149196 | G99: FRANCISCA MARIANO DA SILVA | H99: C100016301 | I99: 1 | J99: LIQUIDADA | K99: PAGO | N99: PAGO | P99: Boleto final entregue, proposta renovada/prospectada;
A100: FRANCISCO HENRIQUE DE ARAUJO NETO | B100: 2023-01-27 | C100: 3000 | D100: 3000 | E100: N | F100: 110871670 | G100: DENILSON DA SILVA DE ANDRADE | H100: C200016001 | I100: 1 | J100: EM SER | K100: PAGO | N100: PAGO | P100: Cliente avisado por telefone, confirmou pagamento na data prevista
A101: FRANCISCO HENRIQUE DE ARAUJO NETO | B101: 2023-01-27 | C101: 2000 | D101: 2000 | E101: N | F101: 113882559 | G101: LINDONOR OLIVEIRA DA SILVA | H101: C200015901 | I101: 1 | J101: EM SER | K101: PAGO | N101: PAGO | P101: Cliente avisado por telefone, confirmou pagamento na data prevista
A102: FRANCISCO HENRIQUE DE ARAUJO NETO | B102: 2023-01-27 | C102: 3000 | D102: 3000 | E102: N | F102: 120000716 | G102: LUCIANO BRUNO OLIVEIRA DA SILVA | H102: C200015801 | I102: 1 | J102: EM SER | K102: PAGO | N102: PAGO | P102: PARCELA PAGA
A103: FRANCISCO HENRIQUE DE ARAUJO NETO | B103: 2023-01-27 | C103: 3000 | D103: 3000 | E103: N | F103: 122461643 | G103: RENNAM SAMY CAVALCANTE DA CUNHA | H103: C200014501 | I103: 1 | J103: EM SER | K103: PAGO | N103: PAGO | P103: Cliente avisado por telefone, confirmou pagamento na data prevista
A104: FRANCISCO HENRIQUE DE ARAUJO NETO | B104: 2023-01-27 | C104: 3000 | D104: 3000 | E104: N | F104: 136926995 | G104: FRANCIANA DANTAS MENDES | H104: C200014901 | I104: 1 | J104: EM SER | K104: PAGO | N104: PAGO | P104: Cliente avisado por telefone, confirmou pagamento na data prevista
A105: FRANCISCO HENRIQUE DE ARAUJO NETO | B105: 2023-01-27 | C105: 3000 | D105: 3000 | E105: N | F105: 151430337 | G105: FRANCISCA LUCIA DANTAS DE MEDEIROS | H105: C200015701 | I105: 1 | J105: LIQUIDADA | K105: PAGO | N105: PAGO | P105: Boleto final entregue, proposta renovada/prospectada;
A106: FRANCISCO HENRIQUE DE ARAUJO NETO | B106: 2023-01-27 | C106: 2000 | D106: 2000 | E106: N | F106: 151516424 | G106: FRANCISCO ALDERI DA SILVA | H106: C200015601 | I106: 1 | J106: EM SER | K106: PAGO | N106: PAGO | P106: Cliente avisado por telefone, confirmou pagamento na data prevista
A107: FRANCISCO HENRIQUE DE ARAUJO NETO | B107: 2023-01-27 | C107: 1750 | D107: 1750 | E107: N | F107: 25176066 | G107: RAIMUNDO NONATO BARBOSA DOS SANTOS | H107: C200015001 | I107: 1 | J107: LIQUIDADA | K107: PAGO | N107: PAGO | P107: Cliente avisado por telefone, confirmou pagamento na data prevista
A108: FRANCISCO HENRIQUE DE ARAUJO NETO | B108: 2023-01-27 | C108: 2500 | D108: 2500 | E108: S | F108: 46334595 | G108: MARINES SOARES | H108: C100015701 | I108: 1 | J108: LIQUIDADA | K108: PAGO | N108: PAGO | P108: Boleto entregue, confirmou o pagamento na data prevista;
A109: FRANCISCO HENRIQUE DE ARAUJO NETO | B109: 2023-01-27 | C109: 3000 | D109: 3000 | E109: N | F109: 46558391 | G109: AGENOR ANTONIO DE MEDEIROS | H109: C200015101 | I109: 1 | J109: EM SER | K109: PAGO | N109: PAGO | P109: Cliente avisado por telefone, confirmou pagamento na data prevista
A110: FRANCISCO HENRIQUE DE ARAUJO NETO | B110: 2023-01-27 | C110: 2750 | D110: 2750 | E110: N | F110: 61330841 | G110: MARIA DAS DORES DA CONCEICAO | H110: C200012901 | I110: 1 | J110: EM SER | K110: PAGO | N110: PAGO | P110: Cliente avisado por telefone, confirmou pagamento na data prevista
A111: FRANCISCO HENRIQUE DE ARAUJO NETO | B111: 2023-01-27 | C111: 161.83 | D111: 161.83 | E111: N | F111: 74434283 | G111: MARIA JANIELE DE OLIVEIRA FONSECA | H111: B000010401 | I111: 8 | J111: EM SER | K111: PAGO | P111: Cliente avisado por telefone, confirmou pagamento na data prevista
A112: FRANCISCO HENRIQUE DE ARAUJO NETO | B112: 2023-01-27 | C112: 3000 | D112: 3000 | E112: N | F112: 82033739 | G112: FRANCISCA LUZIA DA SILVA | H112: C200015401 | I112: 1 | J112: LIQUIDADA | K112: PAGO | N112: PAGO | P112: Cliente avisado por telefone, confirmou pagamento na data prevista
A113: FRANCISCO HENRIQUE DE ARAUJO NETO | B113: 2023-01-27 | C113: 331.84 | D113: 331.84 | E113: N | F113: 84246776 | G113: MARIA JOSE DE SENA | H113: B700005201 | I113: 3 | J113: EM SER | K113: PAGO | N113: PAGO | P113: Boleto final entregue, proposta renovada/prospectada;
A114: FRANCISCO HENRIQUE DE ARAUJO NETO | B114: 2023-01-27 | C114: 3000 | D114: 3000 | E114: N | F114: 89926745 | G114: FRANCISCO DANIEL LAURENTINO | H114: C200015201 | I114: 1 | J114: LIQUIDADA | K114: PAGO | N114: PAGO | P114: Cliente avisado por telefone, confirmou pagamento na data prevista
A115: FRANCISCO HENRIQUE DE ARAUJO NETO | B115: 2023-01-28 | C115: 2500 | D115: 2500 | E115: S | F115: 110871670 | G115: DENILSON DA SILVA DE ANDRADE | H115: C100016501 | I115: 1 | J115: LIQUIDADA | K115: PAGO | N115: PAGO | P115: LIQUIDADA
A116: FRANCISCO HENRIQUE DE ARAUJO NETO | B116: 2023-01-28 | C116: 2000 | D116: 2000 | E116: N | F116: 113857403 | G116: MARIA JARLEIDE SANTANA DA SILVA | H116: C200013901 | I116: 1 | J116: EM SER | K116: PAGO | N116: PAGO | P116: Cliente avisado por telefone, confirmou pagamento na data prevista
A117: FRANCISCO HENRIQUE DE ARAUJO NETO | B117: 2023-01-28 | C117: 1500 | D117: 1500 | E117: N | F117: 123547911 | G117: JOSEANE FERREIRA DA SILVA | H117: C200013801 | I117: 1 | J117: EM SER | K117: PAGO | N117: PAGO | P117: Cliente avisado por telefone, confirmou pagamento na data prevista
A118: FRANCISCO HENRIQUE DE ARAUJO NETO | B118: 2023-01-28 | C118: 3000 | D118: 3000 | E118: N | F118: 151533601 | G118: ANTONIA EUGENIA DA SILVA FONSECA | H118: C200013701 | I118: 1 | J118: LIQUIDADA | K118: PAGO | N118: PAGO | P118: Cliente avisado por telefone, confirmou pagamento na data prevista
A119: FRANCISCO HENRIQUE DE ARAUJO NETO | B119: 2023-01-28 | C119: 2500 | D119: 2500 | E119: S | F119: 18311530 | G119: FRANCISCO DAS CHAGAS DA FONSECA | H119: C100015601 | I119: 1 | J119: LIQUIDADA | K119: PAGO | N119: PAGO | P119: LIQUIDADA
A120: FRANCISCO HENRIQUE DE ARAUJO NETO | B120: 2023-01-28 | C120: 3000 | D120: 3000 | E120: N | F120: 42652305 | G120: FRANCISCO DAS CHAGAS CLEMENTINO DA SILVA | H120: C200013301 | I120: 1 | J120: EM SER | K120: PAGO | N120: PAGO | P120: Cliente avisado por telefone, confirmou pagamento na data prevista
A121: FRANCISCO HENRIQUE DE ARAUJO NETO | B121: 2023-01-28 | C121: 2262.02 | D121: 2262.02 | E121: N | F121: 46453981 | G121: JOSUE NUNES TAVARES | H121: C100015501 | I121: 2 | J121: EM SER | K121: PAGO | N121: PAGO | P121: Boleto final entregue, proposta renovada/prospectada;
A122: FRANCISCO HENRIQUE DE ARAUJO NETO | B122: 2023-01-28 | C122: 3000 | D122: 3000 | E122: N | F122: 46455390 | G122: EDILSON BEZERRA FONSECA | H122: C200014101 | I122: 1 | J122: LIQUIDADA | K122: PAGO | N122: PAGO | P122: Cliente avisado por telefone, confirmou pagamento na data prevista
A123: FRANCISCO HENRIQUE DE ARAUJO NETO | B123: 2023-01-28 | C123: 2500 | D123: 2500 | E123: S | F123: 47133236 | G123: FRANCISCA PEREIRA DA COSTA DE MELO | H123: C100016101 | I123: 1 | J123: LIQUIDADA | K123: PAGO | N123: PAGO | P123: LIQUIDADA
A124: FRANCISCO HENRIQUE DE ARAUJO NETO | B124: 2023-01-28 | C124: 3000 | D124: 3000 | E124: N | F124: 98837370 | G124: MARIA GALDINO DE FRANCA | H124: C200013401 | I124: 1 | J124: LIQUIDADA | K124: PAGO | N124: PAGO | P124: LIQUIDADA
A125: FRANCISCO HENRIQUE DE ARAUJO NETO | B125: 2023-02-02 | C125: 1000 | D125: 1000 | E125: S | F125: 4760963 | G125: VILMAR GOMES DE MORAIS | H125: C100019501 | I125: 1 | J125: LIQUIDADA | K125: PAGO | N125: PAGO | P125: LIQUIDADA
A126: FRANCISCO HENRIQUE DE ARAUJO NETO | B126: 2023-02-08 | C126: 2500 | D126: 2500 | E126: S | F126: 62444708 | G126: ALZINEIDE LOPES SOARES | H126: C100021001 | I126: 1 | J126: LIQUIDADA | K126: PAGO | N126: PAGO | P126: Boleto entregue, confirmou o pagamento na data prevista;
A127: FRANCISCO HENRIQUE DE ARAUJO NETO | B127: 2023-02-08 | C127: 2500 | D127: 2500 | E127: S | F127: 93971992 | G127: NUBIA PEREIRA DE LIMA | H127: C100020901 | I127: 1 | J127: LIQUIDADA | K127: PAGO | N127: PAGO | P127: LIQUIDADA
A128: FRANCISCO HENRIQUE DE ARAUJO NETO | B128: 2023-02-09 | C128: 2500 | D128: 2500 | E128: S | F128: 119505683 | G128: LILIANE MARIA DA SILVA | H128: C100022201 | I128: 1 | J128: LIQUIDADA | K128: PAGO | N128: PAGO | P128: LIQUIDADA
A129: FRANCISCO HENRIQUE DE ARAUJO NETO | B129: 2023-02-09 | C129: 2500 | D129: 2500 | E129: S | F129: 143420867 | G129: DALLYSON LUAN DE SOUZA CRUZ | H129: C100021601 | I129: 1 | J129: LIQUIDADA | K129: PAGO | N129: PAGO | P129: LIQUIDADA
A130: FRANCISCO HENRIQUE DE ARAUJO NETO | B130: 2023-02-09 | C130: 2500 | D130: 2500 | E130: S | F130: 74397506 | G130: RONES JULIAO DE FREITAS | H130: C100033001 | I130: 1 | J130: LIQUIDADA | K130: PAGO | N130: PAGO | P130: LIQUIDADA
A131: FRANCISCO HENRIQUE DE ARAUJO NETO | B131: 2023-02-10 | C131: 2500 | D131: 2500 | E131: S | F131: 136186525 | G131: LANUZIA PEREIRA DA SILVA | H131: C100022501 | I131: 1 | J131: LIQUIDADA | K131: PAGO | N131: PAGO | P131: LIQUIDADA
A132: FRANCISCO HENRIQUE DE ARAUJO NETO | B132: 2023-02-10 | C132: 2500 | D132: 2500 | E132: S | F132: 58036070 | G132: LUZINEIDE CELESTINO DOS SANTOS SILVA | H132: C100021901 | I132: 1 | J132: LIQUIDADA | K132: PAGO | N132: PAGO | P132: Boleto entregue, confirmou o pagamento na data prevista;
A133: FRANCISCO HENRIQUE DE ARAUJO NETO | B133: 2023-02-10 | C133: 52.97 | D133: 52.97 | E133: N | F133: 73411571 | G133: ISABEL CRISTINA PALHARES | H133: B000023801 | I133: 4 | J133: LIQUIDADA | K133: PAGO | N133: PAGO | P133: LIQUIDADA
A134: FRANCISCO HENRIQUE DE ARAUJO NETO | B134: 2023-02-10 | C134: 189.69 | D134: 189.69 | E134: N | F134: 78844297 | G134: FRANCISCO ANDRADE MIGUEL | H134: B000022001 | I134: 6 | J134: EM SER | K134: PAGO | N134: PAGO | P134: PARCELA PAGA
A135: FRANCISCO HENRIQUE DE ARAUJO NETO | B135: 2023-02-10 | C135: 2500 | D135: 2500 | E135: S | F135: 84576370 | G135: MARIA HELENA DA SILVA | H135: C100022301 | I135: 1 | J135: LIQUIDADA | K135: PAGO | N135: PAGO | P135: LIQUIDADA
A136: FRANCISCO HENRIQUE DE ARAUJO NETO | B136: 2023-02-11 | C136: 2500 | D136: 2500 | E136: S | F136: 114385164 | G136: JUCIMAR FRANCISCO DA SILVA | H136: C100021801 | I136: 1 | J136: LIQUIDADA | K136: PAGO | N136: PAGO | P136: LIQUIDADA
A137: FRANCISCO HENRIQUE DE ARAUJO NETO | B137: 2023-02-11 | C137: 2500 | D137: 2500 | E137: S | F137: 127773588 | G137: JOSE BRUNO DE ARAUJO JUNIOR | H137: C100021501 | I137: 1 | J137: LIQUIDADA | K137: PAGO | N137: PAGO | P137: Boleto entregue, confirmou o pagamento na data prevista;
A138: FRANCISCO HENRIQUE DE ARAUJO NETO | B138: 2023-02-11 | C138: 2500 | D138: 2500 | E138: S | F138: 136516390 | G138: MARIA DA PAZ DE MEDEIROS | H138: C100021301 | I138: 1 | J138: LIQUIDADA | K138: PAGO | N138: PAGO | P138: LIQUIDADA
A139: FRANCISCO HENRIQUE DE ARAUJO NETO | B139: 2023-02-11 | C139: 2500 | D139: 2500 | E139: S | F139: 143503795 | G139: MARIA CLARA SOUZA DE BRITO | H139: C100021201 | I139: 1 | J139: LIQUIDADA | K139: PAGO | N139: PAGO | P139: LIQUIDADA
A140: FRANCISCO HENRIQUE DE ARAUJO NETO | B140: 2023-02-11 | C140: 2500 | D140: 2500 | E140: S | F140: 33103854 | G140: JULITA EMIDIO DA SILVA FERREIRA | H140: C100021701 | I140: 1 | J140: LIQUIDADA | K140: PAGO | N140: PAGO | P140: LIQUIDADA
A141: FRANCISCO HENRIQUE DE ARAUJO NETO | B141: 2023-02-11 | C141: 2500 | D141: 2500 | E141: S | F141: 84575893 | G141: LUCIVAL RODRIGUES DA SILVEIRA | H141: C100022401 | I141: 1 | J141: LIQUIDADA | K141: PAGO | N141: PAGO | P141: Boleto entregue, confirmou o pagamento na data prevista;
A142: FRANCISCO HENRIQUE DE ARAUJO NETO | B142: 2023-02-13 | C142: 63.23 | D142: 63.23 | E142: N | F142: 90840687 | G142: ANA LUCIA FIRMINO DE SOUZA | H142: B200012601 | I142: 2 | J142: LIQUIDADA | K142: PAGO | N142: PAGO | P142: LIQUIDADA
A143: FRANCISCO HENRIQUE DE ARAUJO NETO | B143: 2023-02-14 | C143: 3000 | D143: 3000 | E143: N | F143: 104873328 | G143: ADEILZA FERREIRA DA SILVA SOUZA | H143: C200027101 | I143: 1 | J143: EM SER | K143: PAGO | N143: PAGO | P143: PARCELA PAGA
A144: FRANCISCO HENRIQUE DE ARAUJO NETO | B144: 2023-02-14 | C144: 3000 | D144: 3000 | E144: N | F144: 93972586 | G144: ANA MARIA DE MEDEIROS DANTAS | H144: C200028301 | I144: 1 | J144: EM SER | K144: PAGO | N144: PAGO | P144: PARCELA PAGA
A145: FRANCISCO HENRIQUE DE ARAUJO NETO | B145: 2023-02-15 | C145: 199.42 | D145: 0 | E145: N | F145: 76709054 | G145: GUSTAVO ANDRE BRAZ OLIVEIRA | H145: B300011801 | I145: 3 | J145: EM SER | K145: NÃO PAGO | L145: -180
A146: FRANCISCO HENRIQUE DE ARAUJO NETO | B146: 2023-02-15 | C146: 126.16 | D146: 126.16 | E146: N | F146: 84526284 | G146: JARILSON NUNES DA SILVA | H146: B200022201 | I146: 2 | J146: LIQUIDADA | K146: PAGO | N146: PAGO | P146: LIQUIDADA
A147: FRANCISCO HENRIQUE DE ARAUJO NETO | B147: 2023-02-15 | C147: 364.1 | D147: 364.1 | E147: N | F147: 96883475 | G147: IVANEIDE DE SOUZA MELO | H147: B700022301 | I147: 5 | J147: EM SER | K147: PAGO | N147: PAGO | P147: Cliente avisado por telefone, confirmou pagamento na data prevista
A148: FRANCISCO HENRIQUE DE ARAUJO NETO | B148: 2023-02-16 | C148: 149.9 | D148: 149.9 | E148: N | F148: 84203397 | G148: RAFAEL TORQUATO DA SILVA | H148: B100016301 | I148: 6 | J148: LIQUIDADA | K148: PAGO | N148: PAGO | P148: LIQUIDADA
A149: FRANCISCO HENRIQUE DE ARAUJO NETO | B149: 2023-02-16 | C149: 126.45 | D149: 126.45 | E149: N | F149: 91023440 | G149: JESSICA SOUSA DANTAS | H149: B400071701 | I149: 1 | J149: LIQUIDADA | K149: PAGO | N149: PAGO | P149: LIQUIDADA
A150: FRANCISCO HENRIQUE DE ARAUJO NETO | B150: 2023-02-17 | C150: 3000 | D150: 3000 | E150: N | F150: 124252206 | G150: GILBENIA RODRIGUES DA SILVA | H150: C200027901 | I150: 1 | J150: LIQUIDADA | K150: PAGO | N150: PAGO | P150: Cliente avisado por telefone, confirmou pagamento na data prevista
A151: FRANCISCO HENRIQUE DE ARAUJO NETO | B151: 2023-02-17 | C151: 3000 | D151: 3000 | E151: N | F151: 33095050 | G151: MARIA ROSILDA DA SILVA TEIXEIRA | H151: C200028401 | I151: 1 | J151: EM SER | K151: PAGO | N151: PAGO | P151: Cliente avisado por telefone, confirmou pagamento na data prevista
A152: FRANCISCO HENRIQUE DE ARAUJO NETO | B152: 2023-02-17 | C152: 3000 | D152: 3000 | E152: N | F152: 4755039 | G152: LENIRA MENDES BENTO DO NASCIMENTO | H152: C200030401 | I152: 1 | J152: EM SER | K152: PAGO | N152: PAGO | P152: Cliente avisado por telefone, confirmou pagamento na data prevista
A153: FRANCISCO HENRIQUE DE ARAUJO NETO | B153: 2023-02-17 | C153: 195 | D153: 195 | E153: N | F153: 77850998 | G153: FRANCISCO FELINTO SOUZA FERREIRA | H153: B700020401 | I153: 7 | J153: EM SER | K153: PAGO | N153: PAGO | P153: Cliente avisado por telefone, confirmou pagamento na data prevista
A154: FRANCISCO HENRIQUE DE ARAUJO NETO | B154: 2023-02-18 | C154: 1000 | D154: 7.39 | E154: N | F154: 148308042 | G154: JOSE LUIZ DE FRANCA | H154: C100117001 | I154: 1 | J154: EM SER | K154: PAGO PARCIALMENTE | L154: -177 | P154: Cliente avisado por telefone, confirmou pagamento na data prevista
A155: FRANCISCO HENRIQUE DE ARAUJO NETO | B155: 2023-02-19 | C155: 2500 | D155: 2500 | E155: S | F155: 121131981 | G155: PAULO HENRIQUE FIGUEIREDO | H155: C100027301 | I155: 1 | J155: LIQUIDADA | K155: PAGO | N155: PAGO | P155: LIQUIDADA
A156: FRANCISCO HENRIQUE DE ARAUJO NETO | B156: 2023-02-19 | C156: 2500 | D156: 2500 | E156: S | F156: 136506722 | G156: MARIA RODRIGUES DA FONSECA SILVA | H156: C100027201 | I156: 1 | J156: LIQUIDADA | K156: PAGO | N156: PAGO | P156: LIQUIDADA
A157: FRANCISCO HENRIQUE DE ARAUJO NETO | B157: 2023-02-19 | C157: 2512.05 | D157: 0 | E157: N | F157: 46740312 | G157: JOSE TEIXEIRA DA SILVA | H157: C100027401 | I157: 2 | J157: EM SER | K157: NÃO PAGO | L157: -176
A158: FRANCISCO HENRIQUE DE ARAUJO NETO | B158: 2023-02-19 | C158: 110.26 | D158: 110.26 | E158: N | F158: 73781957 | G158: MANOEL FRANCISCO DA SILVA | H158: B000020501 | I158: 7 | J158: EM SER | K158: PAGO | N158: PAGO | P158: PARCELA PAGA
A159: FRANCISCO HENRIQUE DE ARAUJO NETO | B159: 2023-02-19 | C159: 2500 | D159: 2500 | E159: S | F159: 74181561 | G159: ALDEMI CABRAL DE MACEDO | H159: C100027501 | I159: 1 | J159: LIQUIDADA | K159: PAGO | N159: PAGO | P159: LIQUIDADA
A160: FRANCISCO HENRIQUE DE ARAUJO NETO | B160: 2023-02-19 | C160: 2500 | D160: 2500 | E160: S | F160: 83695478 | G160: ERIVAN BATISTA DA COSTA | H160: C100027001 | I160: 1 | J160: LIQUIDADA | K160: PAGO | N160: PAGO | P160: LIQUIDADA
A161: FRANCISCO HENRIQUE DE ARAUJO NETO | B161: 2023-02-20 | C161: 125.93 | D161: 125.93 | E161: N | F161: 60688462 | G161: FRANCISCA DAS CHAGAS BARBOSA | H161: B200033001 | I161: 2 | J161: LIQUIDADA | K161: PAGO | N161: PAGO | P161: LIQUIDADA
A162: FRANCISCO HENRIQUE DE ARAUJO NETO | B162: 2023-02-20 | C162: 165.93 | D162: 165.93 | E162: N | F162: 76994672 | G162: ROSA DE LIMA DE OLIVEIRA | H162: B300012001 | I162: 2 | J162: EM SER | K162: PAGO | N162: PAGO | P162: PARCELA PAGA
A163: FRANCISCO HENRIQUE DE ARAUJO NETO | B163: 2023-02-20 | C163: 1250.15 | D163: 200 | E163: S | F163: 79530481 | G163: ANTONIA FRANCINETE DA SILVA | H163: B400015101 | I163: 5 | J163: EM SER | K163: PAGO PARCIALMENTE | L163: -175
A164: FRANCISCO HENRIQUE DE ARAUJO NETO | B164: 2023-02-20 | C164: 237.1 | D164: 237.1 | E164: N | F164: 80681018 | G164: ANA CARLA DE AQUINO MOURA | H164: B500018501 | I164: 3 | J164: EM SER | K164: PAGO | N164: PAGO | P164: PARCELA PAGA
A165: FRANCISCO HENRIQUE DE ARAUJO NETO | B165: 2023-02-21 | C165: 125.88 | D165: 125.88 | E165: N | F165: 84508639 | G165: FRANCISCO BONIFACIO FERREIRA | H165: B200027901 | I165: 2 | J165: LIQUIDADA | K165: PAGO | N165: PAGO | P165: LIQUIDADA
A166: FRANCISCO HENRIQUE DE ARAUJO NETO | B166: 2023-02-21 | C166: 125.93 | D166: 125.93 | E166: N | F166: 91464891 | G166: EDES FERREIRA DA SILVA | H166: B200028201 | I166: 2 | J166: LIQUIDADA | K166: PAGO | N166: PAGO | P166: LIQUIDADA
A167: FRANCISCO HENRIQUE DE ARAUJO NETO | B167: 2023-02-22 | C167: 231.47 | D167: 231.47 | E167: N | F167: 113856298 | G167: CARLOS ALBERTO CABRAL | H167: B900011201 | I167: 4 | J167: EM SER | K167: PAGO
A168: FRANCISCO HENRIQUE DE ARAUJO NETO | B168: 2023-02-23 | C168: 2500 | D168: 2500 | E168: S | F168: 109993600 | G168: VERIDIANO FERREIRA DA SILVA | H168: C100029101 | I168: 1 | J168: LIQUIDADA | K168: PAGO | N168: PAGO | O168: NÃO - ELABORADA | P168: Boleto entregue, confirmou o pagamento na data prevista;
A169: FRANCISCO HENRIQUE DE ARAUJO NETO | B169: 2023-02-23 | C169: 3000 | D169: 3000 | E169: N | F169: 119505683 | G169: LILIANE MARIA DA SILVA | H169: C200024901 | I169: 1 | J169: EM SER | K169: PAGO | N169: PAGO | P169: PARCELA PAGA
A170: FRANCISCO HENRIQUE DE ARAUJO NETO | B170: 2023-02-23 | C170: 1500 | D170: 1500 | E170: S | F170: 120239512 | G170: HELIO FRANCA ALVES FERREIRA | H170: C100028901 | I170: 1 | J170: LIQUIDADA | K170: PAGO | N170: PAGO | P170: LIQUIDADA
A171: FRANCISCO HENRIQUE DE ARAUJO NETO | B171: 2023-02-23 | C171: 2500 | D171: 2500 | E171: S | F171: 143641991 | G171: IVANILDA LOPES DA SILVA VARELA | H171: C100030101 | I171: 1 | J171: LIQUIDADA | K171: PAGO | N171: PAGO | P171: Boleto entregue, confirmou o pagamento na data prevista;
A172: FRANCISCO HENRIQUE DE ARAUJO NETO | B172: 2023-02-23 | C172: 2500 | D172: 2500 | E172: S | F172: 4888194 | G172: JOSE FERREIRA LIMA | H172: C100028501 | I172: 1 | J172: LIQUIDADA | K172: PAGO | N172: PAGO | P172: LIQUIDADA
A173: FRANCISCO HENRIQUE DE ARAUJO NETO | B173: 2023-02-23 | C173: 3000 | D173: 3000 | E173: N | F173: 52137841 | G173: JOSE SIMIAO DA SILVA | H173: C200025201 | I173: 1 | J173: LIQUIDADA | K173: PAGO | N173: PAGO | P173: PARCELA PAGA
A174: FRANCISCO HENRIQUE DE ARAUJO NETO | B174: 2023-02-23 | C174: 3000 | D174: 3000 | E174: N | F174: 52137882 | G174: MARIA REGINA MACENA DA SILVA | H174: C200025001 | I174: 1 | J174: EM SER | K174: PAGO | N174: PAGO | P174: PARCELA PAGA
A175: FRANCISCO HENRIQUE DE ARAUJO NETO | B175: 2023-02-24 | C175: 3000 | D175: 3000 | E175: N | F175: 118803931 | G175: JOAO DIAS DE OLIVEIRA FILHO | H175: C200026501 | I175: 1 | J175: LIQUIDADA | K175: PAGO | N175: PAGO | P175: PARCELA PAGA
A176: FRANCISCO HENRIQUE DE ARAUJO NETO | B176: 2023-02-24 | C176: 3000 | D176: 3000 | E176: N | F176: 136353265 | G176: FABIANA TAVARES DOS SANTOS | H176: C200025701 | I176: 1 | J176: LIQUIDADA | K176: PAGO | N176: PAGO | P176: PARCELA PAGA
A177: FRANCISCO HENRIQUE DE ARAUJO NETO | B177: 2023-02-24 | C177: 3000 | D177: 3000 | E177: N | F177: 142773514 | G177: DUCINEIDE ROBERTO DA SILVA LOPES | H177: C200025801 | I177: 1 | J177: EM SER | K177: PAGO | N177: PAGO | P177: PARCELA PAGA
A178: FRANCISCO HENRIQUE DE ARAUJO NETO | B178: 2023-02-24 | C178: 3000 | D178: 3000 | E178: N | F178: 144158730 | G178: FRANCISCO DAS CHAGAS COSTA | H178: C200025401 | I178: 1 | J178: EM SER | K178: PAGO | N178: PAGO | P178: PARCELA PAGA
A179: FRANCISCO HENRIQUE DE ARAUJO NETO | B179: 2023-02-24 | C179: 3000 | D179: 3000 | E179: N | F179: 152073490 | G179: MARIA ROSANGELA DA CUNHA PATRICIO | H179: C200027801 | I179: 1 | J179: EM SER | K179: PAGO | N179: PAGO | P179: PARCELA PAGA
A180: FRANCISCO HENRIQUE DE ARAUJO NETO | B180: 2023-02-24 | C180: 1720.67 | D180: 1720.67 | E180: S | F180: 17640590 | G180: FRANCISCO DE ASSIS DA SILVA | H180: B500015301 | I180: 4 | J180: LIQUIDADA | K180: PAGO | N180: PAGO | P180: LIQUIDADA
A181: FRANCISCO HENRIQUE DE ARAUJO NETO | B181: 2023-02-24 | C181: 3000 | D181: 3000 | E181: N | F181: 33093576 | G181: LUZIA FRANCISCA DA SILVA | H181: C200025501 | I181: 1 | J181: EM SER | K181: PAGO | N181: PAGO | P181: PARCELA PAGA
A182: FRANCISCO HENRIQUE DE ARAUJO NETO | B182: 2023-02-24 | C182: 3000 | D182: 3000 | E182: N | F182: 45743671 | G182: AGENOR AVARISTO DE SOUZA | H182: C200025601 | I182: 1 | J182: EM SER | K182: PAGO | N182: PAGO | P182: PARCELA PAGA
A183: FRANCISCO HENRIQUE DE ARAUJO NETO | B183: 2023-02-24 | C183: 3000 | D183: 3000 | E183: N | F183: 4871554 | G183: JOAO BATISTA RODRIGUES | H183: C200025901 | I183: 1 | J183: EM SER | K183: PAGO | N183: PAGO | P183: PARCELA PAGA
A184: FRANCISCO HENRIQUE DE ARAUJO NETO | B184: 2023-02-24 | C184: 3000 | D184: 3000 | E184: N | F184: 49373210 | G184: JOSE HILTON BATISTA DA FONSECA | H184: C200026101 | I184: 1 | J184: EM SER | K184: PAGO | N184: PAGO | P184: PARCELA PAGA
A185: FRANCISCO HENRIQUE DE ARAUJO NETO | B185: 2023-02-24 | C185: 3000 | D185: 3000 | E185: N | F185: 5036827 | G185: PEDRO TEIXEIRA DE OLIVEIRA | H185: C200026901 | I185: 1 | J185: LIQUIDADA | K185: PAGO | N185: PAGO | P185: LIQUIDADA
A186: FRANCISCO HENRIQUE DE ARAUJO NETO | B186: 2023-02-24 | C186: 3000 | D186: 3000 | E186: N | F186: 56802812 | G186: MARIA PAULA FRANCINETE DE MACENA | H186: C200026001 | I186: 1 | J186: EM SER | K186: PAGO | N186: PAGO | P186: PARCELA PAGA
A187: FRANCISCO HENRIQUE DE ARAUJO NETO | B187: 2023-02-24 | C187: 126.44 | D187: 126.44 | E187: N | F187: 74111998 | G187: JOAO MARIA MAGNO DE ANDRADE | H187: B400087901 | I187: 1 | J187: LIQUIDADA | K187: PAGO | N187: PAGO | P187: LIQUIDADA
A188: FRANCISCO HENRIQUE DE ARAUJO NETO | B188: 2023-02-24 | C188: 177.98 | D188: 177.98 | E188: N | F188: 74791427 | G188: MARIA DAS DORES SILVA CAMARA | H188: B500018101 | I188: 3 | J188: EM SER | K188: PAGO | N188: PAGO | P188: PARCELA PAGA
A189: FRANCISCO HENRIQUE DE ARAUJO NETO | B189: 2023-02-24 | C189: 1750 | D189: 1750 | E189: N | F189: 77015550 | G189: ELIETE LUCIA CARDOSO TOMAZ | H189: C200026701 | I189: 1 | J189: EM SER | K189: PAGO | N189: PAGO | P189: PARCELA PAGA
A190: FRANCISCO HENRIQUE DE ARAUJO NETO | B190: 2023-02-25 | C190: 1000 | D190: 1000 | E190: S | F190: 112602842 | G190: FRANCISCO CANINDE DA SILVA | H190: C100029401 | I190: 1 | J190: LIQUIDADA | K190: PAGO | N190: PAGO | P190: LIQUIDADA
A191: FRANCISCO HENRIQUE DE ARAUJO NETO | B191: 2023-02-25 | C191: 2500 | D191: 2500 | E191: S | F191: 118840099 | G191: MARIA JOSINEIDE CAVALCANTE | H191: C100028401 | I191: 1 | J191: LIQUIDADA | K191: PAGO | N191: PAGO | P191: LIQUIDADA
A192: FRANCISCO HENRIQUE DE ARAUJO NETO | B192: 2023-02-25 | C192: 2500 | D192: 2500 | E192: S | F192: 120487046 | G192: MANOEL PINTO SOARES DA SILVA | H192: C100028301 | I192: 1 | J192: LIQUIDADA | K192: PAGO | N192: PAGO | P192: LIQUIDADA
A193: FRANCISCO HENRIQUE DE ARAUJO NETO | B193: 2023-02-25 | C193: 2500 | D193: 2500 | E193: S | F193: 131580946 | G193: ANTONIO BEZERRA GUERRA | H193: C100028601 | I193: 1 | J193: LIQUIDADA | K193: PAGO | N193: PAGO | P193: LIQUIDADA
A194: FRANCISCO HENRIQUE DE ARAUJO NETO | B194: 2023-02-25 | C194: 3000 | D194: 3000 | E194: N | F194: 131655052 | G194: IVANILSON CESARIO DANTAS | H194: C200030101 | I194: 1 | J194: LIQUIDADA | K194: PAGO | N194: PAGO | P194: LIQUIDADA
A195: FRANCISCO HENRIQUE DE ARAUJO NETO | B195: 2023-02-25 | C195: 2500 | D195: 2500 | E195: S | F195: 133063495 | G195: ANTONIO AUGUSTO DA SILVA NETO | H195: C100032901 | I195: 1 | J195: LIQUIDADA | K195: PAGO | N195: PAGO | P195: LIQUIDADA
A196: FRANCISCO HENRIQUE DE ARAUJO NETO | B196: 2023-02-25 | C196: 3000 | D196: 3000 | E196: N | F196: 152075008 | G196: FRANCISCA ALCIENE DA SILVA | H196: C200032701 | I196: 1 | J196: LIQUIDADA | K196: PAGO | N196: PAGO | O196: SIM - ELABORADA | P196: LIQUIDADA
A197: FRANCISCO HENRIQUE DE ARAUJO NETO | B197: 2023-02-25 | C197: 3000 | D197: 3000 | E197: N | F197: 152160420 | G197: MARCIELIO REGES DA SILVA | H197: C200030001 | I197: 1 | J197: EM SER | K197: PAGO | N197: PAGO | P197: PARCELA PAGA
A198: FRANCISCO HENRIQUE DE ARAUJO NETO | B198: 2023-02-25 | C198: 3000 | D198: 3000 | E198: N | F198: 15238728 | G198: JAQUELINE BEZERRA DE MACEDO | H198: C200032501 | I198: 1 | J198: EM SER | K198: PAGO | N198: PAGO | P198: Cliente avisado por telefone, confirmou pagamento na data prevista
A199: FRANCISCO HENRIQUE DE ARAUJO NETO | B199: 2023-02-25 | C199: 3000 | D199: 3000 | E199: N | F199: 18656447 | G199: JOAO BATISTA RODRIGUES LOPES | H199: C200032101 | I199: 1 | J199: LIQUIDADA | K199: PAGO | N199: PAGO | O199: SIM - ELABORADA | P199: LIQUIDADA
A200: FRANCISCO HENRIQUE DE ARAUJO NETO | B200: 2023-02-25 | C200: 3000 | D200: 3000 | E200: N | F200: 18656561 | G200: MARIA DALVANETE DANTAS DE SOUZA | H200: C200031801 | I200: 1 | J200: LIQUIDADA | K200: PAGO | N200: PAGO | O200: SIM - ELABORADA | P200: LIQUIDADA
... 1180 more rows

Sheet REEMBOLSO SIMULADO
B2: REEMBOLSO SIMULADO | S2: =TEXT(S5,"MMMm") -> janeiro | T2: =TEXT(T5,"MMMm") -> fevereiro | U2: março | V2: abril | W2: maio | X2: junho | Y2: julho | Z2: agosto | AA2: setembro | AB2: outubro | AC2: novembro | AD2: dezembro
S3: 0 | T3: 1 | U3: 2 | V3: 3 | W3: 4 | X3: 5 | Y3: 6 | Z3: 7 | AA3: 8 | AB3: 9 | AC3: 10 | AD3: 11
B4: REEMBOLSO ATUAL | E4: REEMBOLSO ATRASO ATÉ 120 DIAS (FICHA 1 E 2) | H4: REEMBOLSO ATRASO (EXCERTO FICHA 1 E 2) | K4: REEMBOLSO ATRASO TOTAL | R4: REEMBOLSO ATUAL
E5: PREVISÃO ATÉ | F5: =TODAY() -> 2023-08-15 | H5: PREVISÃO ATÉ | I5: =TODAY() -> 2023-08-15 | K5: PREVISÃO ATÉ | L5: =TODAY() -> 2023-08-15 | R5: PREVISÃO ATÉ | S5: =IF(EOMONTH("1/1/2023",S3)>EOMONTH(TODAY(),0),"",EOMONTH("1/1/2023",S3)) -> 2023-01-31 | T5: =IF(EOMONTH("1/1/2023",T3)>EOMONTH(TODAY(),0),"",EOMONTH("1/1/2023",T3)) -> 2023-02-28 | U5: 2023-03-31 | V5: 2023-04-30 | W5: 2023-05-31 | X5: 2023-06-30 | Y5: 2023-07-31 | Z5: 2023-08-31 | AA5: =EOMONTH("1/1/2023",AA3) -> 2023-09-30 | AB5: =EOMONTH("1/1/2023",AB3) -> 2023-10-31 | AC5: 2023-11-30 | AD5: 2023-12-31
B6: PREVISÃO ATÉ | C6: =TODAY() -> 2023-08-15 | E6: REEMBOLSO PREVISTO | F6: =SUMIF(ACOMPANHAMENTO!$B:$B,"<="&F5,ACOMPANHAMENTO!$C:$C) -> 1699872.54 | H6: REEMBOLSO PREVISTO | I6: =SUMIF(ACOMPANHAMENTO!$B:$B,"<="&I5,ACOMPANHAMENTO!$C:$C) -> 1699872.54 | K6: REEMBOLSO PREVISTO | L6: =SUMIF(ACOMPANHAMENTO!$B:$B,"<="&L5,ACOMPANHAMENTO!$C:$C) -> 1699872.54 | R6: REEMBOLSO PREVISTO | S6: =SUMIF(ACOMPANHAMENTO!$B:$B,"<="&S5,ACOMPANHAMENTO!$C:$C) -> 261842.7 | T6: =SUMIF(ACOMPANHAMENTO!$B:$B,"<="&T5,ACOMPANHAMENTO!$C:$C) -> 470183.52 | U6: =SUMIF(ACOMPANHAMENTO!$B:$B,"<="&U5,ACOMPANHAMENTO!$C:$C) -> 748944.56 | V6: =SUMIF(ACOMPANHAMENTO!$B:$B,"<="&V5,ACOMPANHAMENTO!$C:$C) -> 975280.35 | W6: =SUMIF(ACOMPANHAMENTO!$B:$B,"<="&W5,ACOMPANHAMENTO!$C:$C) -> 1252080.43 | X6: =SUMIF(ACOMPANHAMENTO!$B:$B,"<="&X5,ACOMPANHAMENTO!$C:$C) -> 1483889.07 | Y6: =SUMIF(ACOMPANHAMENTO!$B:$B,"<="&Y5,ACOMPANHAMENTO!$C:$C) -> 1639919.53 | Z6: =SUMIF(ACOMPANHAMENTO!$B:$B,"<="&Z5,ACOMPANHAMENTO!$C:$C) -> 1849793.55 | AA6: =SUMIF(ACOMPANHAMENTO!$B:$B,"<="&AA5,ACOMPANHAMENTO!$C:$C) -> 1984623.44 | AB6: =SUMIF(ACOMPANHAMENTO!$B:$B,"<="&AB5,ACOMPANHAMENTO!$C:$C) -> 2194028.13 | AC6: =SUMIF(ACOMPANHAMENTO!$B:$B,"<="&AC5,ACOMPANHAMENTO!$C:$C) -> 2431969.38 | AD6: =SUMIF(ACOMPANHAMENTO!$B:$B,"<="&AD5,ACOMPANHAMENTO!$C:$C) -> 2677663.06
B7: REEMBOLSO PREVISTO | C7: =SUMIF(ACOMPANHAMENTO!$B:$B,"<="&C6,ACOMPANHAMENTO!$C:$C) -> 1699872.54 | E7: REEMBOLSO EFETIVO | F7: =SUMIF(ACOMPANHAMENTO!$B:$B,"<="&F5,ACOMPANHAMENTO!$D:$D) -> 1598639.47 | H7: REEMBOLSO EFETIVO | I7: =SUMIF(ACOMPANHAMENTO!$B:$B,"<="&I5,ACOMPANHAMENTO!$D:$D) -> 1598639.47 | K7: REEMBOLSO EFETIVO | L7: =SUMIF(ACOMPANHAMENTO!$B:$B,"<="&L5,ACOMPANHAMENTO!$D:$D) -> 1598639.47 | R7: REEMBOLSO EFETIVO TOTAL | S7: =SUMIF(ACOMPANHAMENTO!$B:$B,"<="&S5,ACOMPANHAMENTO!$D:$D) -> 255606.49 | T7: =SUMIF(ACOMPANHAMENTO!$B:$B,"<="&T5,ACOMPANHAMENTO!$D:$D) -> 459193.08 | U7: =SUMIF(ACOMPANHAMENTO!$B:$B,"<="&U5,ACOMPANHAMENTO!$D:$D) -> 729217.97 | V7: =SUMIF(ACOMPANHAMENTO!$B:$B,"<="&V5,ACOMPANHAMENTO!$D:$D) -> 930437.1 | W7: =SUMIF(ACOMPANHAMENTO!$B:$B,"<="&W5,ACOMPANHAMENTO!$D:$D) -> 1185010.87 | X7: =SUMIF(ACOMPANHAMENTO!$B:$B,"<="&X5,ACOMPANHAMENTO!$D:$D) -> 1395318.85 | Y7: =SUMIF(ACOMPANHAMENTO!$B:$B,"<="&Y5,ACOMPANHAMENTO!$D:$D) -> 1542285.08 | Z7: =SUMIF(ACOMPANHAMENTO!$B:$B,"<="&Z5,ACOMPANHAMENTO!$D:$D) -> 1672537.24 | AA7: =SUMIF(ACOMPANHAMENTO!$B:$B,"<="&AA5,ACOMPANHAMENTO!$D:$D) -> 1751958.67 | AB7: =SUMIF(ACOMPANHAMENTO!$B:$B,"<="&AB5,ACOMPANHAMENTO!$D:$D) -> 1821418.95 | AC7: =SUMIF(ACOMPANHAMENTO!$B:$B,"<="&AC5,ACOMPANHAMENTO!$D:$D) -> 1918884.33 | AD7: =SUMIF(ACOMPANHAMENTO!$B:$B,"<="&AD5,ACOMPANHAMENTO!$D:$D) -> 1992442.87
B8: REEMBOLSO EFETIVO TOTAL | C8: =SUMIF(ACOMPANHAMENTO!$B:$B,"<="&C6,ACOMPANHAMENTO!$D:$D) -> 1598639.47 | E8: ATRASO ATÉ 120 DIAS | F8: =SUMIFS(ACOMPANHAMENTO!$C:$C,ACOMPANHAMENTO!L:L,">=-120",ACOMPANHAMENTO!L:L,"<=0",ACOMPANHAMENTO!$I:$I,"<=2") -> 73656.11 | H8: ATRASO TOTAL | I8: =SUMIFS(ACOMPANHAMENTO!$C:$C,ACOMPANHAMENTO!L:L,">=-120",ACOMPANHAMENTO!L:L,"<=0",ACOMPANHAMENTO!$I:$I,">2") -> 6838.84 | K8: ATRASO TOTAL | L8: =SUMIF(ACOMPANHAMENTO!$L:$L,"<0",ACOMPANHAMENTO!$C:$C) -> 107251.57 | R8: REEMBOLSO (%) | S8: =S7/S6 -> 0.9761833727 | T8: 0.9766252122 | U8: 0.9736608141 | V8: 0.9540201441 | W8: 0.9464335051 | X8: 0.9403121016 | Y8: 0.9404638775 | Z8: =IF(Z5>EOMONTH("1/1/2023",Z3),"",Z7/Z6) -> 0.9041750848 | AA8: =IF(AA5>EOMONTH(TODAY(),0),NA(),AA7/AA6) ->  | AB8: =IF(AB5>EOMONTH(TODAY(),0),NA(),AB7/AB6) -> 
B9: REEMBOLSO (%) | C9: =C8/C7 -> 0.9404466702 | E9: REEMBOLSO (%) | F9: =(F7+F8)/F6 -> 0.9837770425 | H9: REEMBOLSO (%) | I9: =(I7+I8)/I6 -> 0.9444698189 | K9: REEMBOLSO (%) | L9: =(L7+L8)/L6 -> 1.00354056
B11: EVOLUÇÃO MENSAL DO REEMBOLSO

Sheet BACKUP (hidden)
A1: CHAVE_ID | B1: SITUAÇÃO | C1: NO S476? | D1: OBSERVAÇÃO
A2: 4492782453614B3001419011 | B2: PAGO | D2: LIQUIDADA
A3: 4493078047651B00000040112 | B3: PAGO | D3: LIQUIDADA
A4: 4493078452679B0000007016 | B4: PAGO | D4: LIQUIDADA
A5: 44931104641022C2000015011 | B5: PAGO | D5: LIQUIDADA
A6: 44931117574202C2000016011 | B6: PAGO | D6: Boleto entregue, confirmou o pagamento na data prevista;
A7: 44931139261549C2000017011 | B7: PAGO | D7: Boleto entregue, confirmou o pagamento na data prevista;
A8: 44931139666796C2000018011 | B8: PAGO | D8: Boleto entregue, confirmou o pagamento na data prevista;
A9: 4493143884782B2000281014 | B9: PAGO | D9: LIQUIDADA
A10: 4493290629866B2000086012 | B10: PAGO | D10: LIQUIDADA
A11: 44933139713614C1000009013 | B11: PAGO | D11: PARCELA PAGA
A12: 4493322280382C1000007011 | B12: PAGO | D12: LIQUIDADA
A13: 4493419394295B4000030015 | B13: NÃO PAGO | D13: Boleto entregue, sem perspectiva de pagamento
A14: 44935147123525C1000989011 | B14: PAGO | D14: LIQUIDADA
A15: 4493549690365B2000116013 | B15: PAGO | D15: LIQUIDADA
A16: 4493590694498B2000160012 | B16: PAGO | D16: LIQUIDADA
A17: 44936139825210C2000020011 | B17: PAGO | D17: Boleto entregue, confirmou o pagamento na data prevista;
A18: 4493661368437C2000024011 | B18: PAGO | D18: LIQUIDADA
A19: 4493681846263C2000034011 | B19: PAGO | D19: Cliente avisado por telefone, confirmou pagamento na data prevista
A20: 44938115662504C1000029011 | B20: PAGO | D20: Boleto entregue, confirmou o pagamento na data prevista;
A21: 44938122482649C1000037011 | B21: PAGO | D21: Boleto entregue, confirmou o pagamento na data prevista;
A22: 44938142640176C1000030011 | B22: PAGO | D22: LIQUIDADA
A23: 4493842418574C1000022011 | B23: PAGO | D23: LIQUIDADA
A24: 4493898030489C1000028011 | B24: PAGO | D24: Boleto entregue, confirmou o pagamento na data prevista;
A25: 44939115882680C2000038011 | B25: PAGO | D25: Boleto enviado via Whatsapp, cliente confirmou o pagamento
A26: 449394891560C2000069011 | B26: PAGO | D26: LIQUIDADA
A27: 4493954263397C2000068011 | B27: PAGO | D27: LIQUIDADA
A28: 4493979531646C1000087011 | B28: PAGO PARCIALMENTE | D28: Vai amortizar o valor R$300,00 e renegociar na data 13/01 solicitação assinada;
A29: 4493979972733B5000011014 | B29: NÃO PAGO | D29: evadida
A30: 4493987673638B6000023012 | B30: PAGO | D30: Cliente avisado por telefone, confirmou pagamento na data prevista
A31: 4493993705796C2000060011 | B31: PAGO | D31: Cliente avisado por telefone, confirmou pagamento na data prevista
A32: 44941115662561C1000104011 | B32: PAGO | D32: Boleto entregue, confirmou o pagamento na data prevista;
A33: 44941142809474C1000100011 | B33: PAGO | D33: LIQUIDADA
A34: 4494163823603C1000051011 | B34: PAGO | D34: Boleto entregue, confirmou o pagamento na data prevista;
A35: 4494179531232C1000090011 | B35: PAGO | D35: LIQUIDADA
A36: 4494190843798B2000162012 | B36: PAGO | D36: LIQUIDADA
A37: 4494193705796C1000050011 | B37: PAGO | D37: LIQUIDADA
A38: 4494274791427B2000447012 | B38: PAGO | D38: LIQUIDADA
A39: 44943101891398C2000063011 | B39: PAGO | D39: Cliente avisado por telefone, confirmou pagamento na data prevista
A40: 44943117303859C2000046011 | B40: PAGO | D40: Cliente avisado por telefone, confirmou pagamento na data prevista
A41: 44943122315807C2000066011 | B41: PAGO | D41: Cliente avisado por telefone, confirmou pagamento na data prevista
A42: 44943124492026C2000065011 | B42: PAGO | D42: Cliente avisado por telefone, confirmou pagamento na data prevista
A43: 44943131111304C2000070011 | B43: PAGO | D43: Cliente avisado por telefone, confirmou pagamento na data prevista
A44: 4494388236930C2000067011 | B44: PAGO | D44: Cliente avisado por telefone, confirmou pagamento na data prevista
A45: 44944118928175C1000103011 | B45: PAGO | D45: Boleto final entregue, proposta renovada/prospectada;
A46: 44944142773514C1000105011 | B46: PAGO | D46: LIQUIDADA
A47: 44945102167079C1000098011 | B47: PAGO | D47: LIQUIDADA
A48: 44945102167525C1000099011 | B48: PAGO | D48: LIQUIDADA
A49: 44945135497576C1000108011 | B49: PAGO | D49: LIQUIDADA
A50: 44945135795623C1000097011 | B50: PAGO | D50: LIQUIDADA
A51: 44945142841923C1000096011 | B51: PAGO | D51: LIQUIDADA
A52: 4494529859386C1000109011 | B52: PAGO | D52: LIQUIDADA
A53: 4494533120494C1000107011 | B53: PAGO | D53: LIQUIDADA
A54: 4494562756630C1000102011 | B54: PAGO | D54: LIQUIDADA
A55: 4494563999205C1000114011 | B55: PAGO | D55: LIQUIDADA
A56: 4494574397951C1000101011 | B56: PAGO | D56: Boleto entregue, confirmou o pagamento na data prevista;
A57: 4494575500744C1000106011 | B57: PAGO | D57: LIQUIDADA
A58: 4494577205805C1000110011 | B58: PAGO | D58: Cliente avisado por telefone, confirmou pagamento na data prevista
A59: 4494591243246B8000055012
A60: 44946128097243C2000080011 | B60: PAGO | D60: Cliente avisado por telefone, confirmou pagamento na data prevista
A61: 44946136186525C2000082011 | B61: PAGO | D61: Boleto entregue, confirmou o pagamento na data prevista;
A62: 4494613980917C2000081011 | B62: PAGO | D62: LIQUIDADA
A63: 4494615219348C2000079011 | B63: PAGO | D63: Cliente avisado por telefone, confirmou pagamento na data prevista
A64: 4494629859386C2000078011 | B64: PAGO | D64: Cliente avisado por telefone, confirmou pagamento na data prevista
A65: 4494645743671C1000111011 | B65: PAGO | D65: LIQUIDADA
A66: 4494647082375C2000083011 | B66: PAGO | D66: Cliente avisado por telefone, confirmou pagamento na data prevista
A67: 4494673779027B0000054014 | B67: PAGO | D67: LIQUIDADA
A68: 4494676563428C1000112011 | B68: PAGO | D68: LIQUIDADA
A69: 44950108149196C2000122011 | B69: PAGO | D69: Boleto final entregue, proposta renovada/prospectada;
A70: 44950123651770C2000123011 | B70: PAGO | D70: Cliente avisado por telefone, confirmou pagamento na data prevista
A71: 44950124123712C2000121011 | B71: PAGO | D71: Cliente avisado por telefone, confirmou pagamento na data prevista
A72: 44950151379724C2000120011 | B72: PAGO | D72: Cliente avisado por telefone, confirmou pagamento na data prevista
A73: 4495073770463B1000083014 | B73: PAGO | D73: Cliente avisado por telefone, confirmou pagamento na data prevista
A74: 4495077076503B2000130013 | B74: PAGO | D74: LIQUIDADA
A75: 4495078447398B1000077014 | B75: PAGO | D75: LIQUIDADA
A76: 44951129076030C1000142011 | B76: PAGO | D76: LIQUIDADA
A77: 44951131655052C1000147012 | B77: PAGO | D77: LIQUIDADA
A78: 4495143494103C1000164011 | B78: PAGO | D78: Boleto entregue, confirmou o pagamento na data prevista;
A79: 449514954392C1000148011 | B79: PAGO | D79: Boleto final entregue, proposta renovada/prospectada;
A80: 4495156802739C1000143011 | B80: PAGO | D80: LIQUIDADA
A81: 4495159807123C1000144011 | B81: PAGO | D81: Boleto final entregue, proposta renovada/prospectada;
A82: 4495161368437C1000119011 | B82: PAGO | D82: LIQUIDADA
A83: 4495177669323C1000146011 | B83: PAGO | D83: Boleto final entregue, proposta renovada/prospectada;
A84: 4495178574837C1000145011 | B84: PAGO | D84: Boleto final entregue, proposta renovada/prospectada;
A85: 4495196460845C1000141011 | B85: PAGO | D85: LIQUIDADA
A86: 44952109295451B6000112014 | B86: PAGO | D86: Cliente avisado por telefone, confirmou pagamento na data prevista
A87: 4495212294815C1000166011 | B87: PAGO | D87: Boleto final entregue, proposta renovada/prospectada;
A88: 44952135795623C2000125011 | B88: PAGO | D88: Cliente avisado por telefone, confirmou pagamento na data prevista
A89: 44952142841923C2000124011 | B89: PAGO | D89: Cliente avisado por telefone, confirmou pagamento na data prevista
A90: 44952143035863C1000160011 | B90: PAGO | D90: LIQUIDADA
A91: 44952143035863C2000126011 | B91: PAGO | D91: Boleto final entregue, proposta renovada/prospectada;
A92: 4495218694786B6000113012 | B92: PAGO | D92: Cliente avisado por telefone, confirmou pagamento na data prevista
A93: 4495277063295C1000154011 | B93: PAGO | D93: LIQUIDADA
A94: 4495277779528C2000119011 | B94: PAGO | D94: Cliente avisado por telefone, confirmou pagamento na data prevista
A95: 4495280987902C1000162012 | B95: PAGO | D95: Cliente avisado por telefone, confirmou pagamento na data prevista
A96: 4495284236082B8000062016 | B96: PAGO | D96: Cliente avisado por telefone, confirmou pagamento na data prevista
A97: 4495293778819B8000061012 | B97: PAGO | D97: Cliente avisado por telefone, confirmou pagamento na data prevista
A98: 44953100615111C2000161011 | B98: PAGO | D98: PARCELA PAGA
A99: 44953108149196C1000163011 | B99: PAGO | D99: Boleto final entregue, proposta renovada/prospectada;
A100: 44953110871670C2000160011 | B100: PAGO | D100: Cliente avisado por telefone, confirmou pagamento na data prevista
A101: 44953113882559C2000159011 | B101: PAGO | D101: Cliente avisado por telefone, confirmou pagamento na data prevista
A102: 44953120000716C2000158011 | B102: PAGO | D102: PARCELA PAGA
A103: 44953122461643C2000145011 | B103: PAGO | D103: Cliente avisado por telefone, confirmou pagamento na data prevista
A104: 44953136926995C2000149011 | B104: PAGO | D104: Cliente avisado por telefone, confirmou pagamento na data prevista
A105: 44953151430337C2000157011 | B105: PAGO | D105: Boleto final entregue, proposta renovada/prospectada;
A106: 44953151516424C2000156011 | B106: PAGO | D106: Cliente avisado por telefone, confirmou pagamento na data prevista
A107: 4495325176066C2000150011 | B107: PAGO | D107: Cliente avisado por telefone, confirmou pagamento na data prevista
A108: 4495346334595C1000157011 | B108: PAGO | D108: Boleto entregue, confirmou o pagamento na data prevista;
A109: 4495346558391C2000151011 | B109: PAGO | D109: Cliente avisado por telefone, confirmou pagamento na data prevista
A110: 4495361330841C2000129011 | B110: PAGO | D110: Cliente avisado por telefone, confirmou pagamento na data prevista
A111: 4495374434283B0000104018 | D111: Cliente avisado por telefone, confirmou pagamento na data prevista
A112: 4495382033739C2000154011 | B112: PAGO | D112: Cliente avisado por telefone, confirmou pagamento na data prevista
A113: 4495384246776B7000052013 | B113: PAGO | D113: Boleto final entregue, proposta renovada/prospectada;
A114: 4495389926745C2000152011 | B114: PAGO | D114: Cliente avisado por telefone, confirmou pagamento na data prevista
A115: 44954110871670C1000165011 | B115: PAGO | D115: LIQUIDADA
A116: 44954113857403C2000139011 | B116: PAGO | D116: Cliente avisado por telefone, confirmou pagamento na data prevista
A117: 44954123547911C2000138011 | B117: PAGO | D117: Cliente avisado por telefone, confirmou pagamento na data prevista
A118: 44954151533601C2000137011 | B118: PAGO | D118: Cliente avisado por telefone, confirmou pagamento na data prevista
A119: 4495418311530C1000156011 | B119: PAGO | D119: LIQUIDADA
A120: 4495442652305C2000133011 | B120: PAGO | D120: Cliente avisado por telefone, confirmou pagamento na data prevista
A121: 4495446453981C1000155012 | B121: PAGO | D121: Boleto final entregue, proposta renovada/prospectada;
A122: 4495446455390C2000141011 | B122: PAGO | D122: Cliente avisado por telefone, confirmou pagamento na data prevista
A123: 4495447133236C1000161011 | B123: PAGO | D123: LIQUIDADA
A124: 4495498837370C2000134011 | B124: PAGO | D124: LIQUIDADA
A125: 449594760963C1000195011 | B125: PAGO | D125: LIQUIDADA
A126: 4496562444708C1000210011 | B126: PAGO | D126: Boleto entregue, confirmou o pagamento na data prevista;
A127: 4496593971992C1000209011 | B127: PAGO | D127: LIQUIDADA
A128: 44966119505683C1000222011 | B128: PAGO | D128: LIQUIDADA
A129: 44966143420867C1000216011 | B129: PAGO | D129: LIQUIDADA
A130: 4496674397506C1000330011 | B130: PAGO | D130: LIQUIDADA
A131: 44967136186525C1000225011 | B131: PAGO | D131: LIQUIDADA
A132: 4496758036070C1000219011 | B132: PAGO | D132: Boleto entregue, confirmou o pagamento na data prevista;
A133: 4496773411571B0000238014 | B133: PAGO | D133: LIQUIDADA
A134: 4496778844297B0000220016 | B134: PAGO | D134: PARCELA PAGA
A135: 4496784576370C1000223011 | B135: PAGO | D135: LIQUIDADA
A136: 44968114385164C1000218011 | B136: PAGO | D136: LIQUIDADA
A137: 44968127773588C1000215011 | B137: PAGO | D137: Boleto entregue, confirmou o pagamento na data prevista;
A138: 44968136516390C1000213011 | B138: PAGO | D138: LIQUIDADA
A139: 44968143503795C1000212011 | B139: PAGO | D139: LIQUIDADA
A140: 4496833103854C1000217011 | B140: PAGO | D140: LIQUIDADA
A141: 4496884575893C1000224011 | B141: PAGO | D141: Boleto entregue, confirmou o pagamento na data prevista;
A142: 4497090840687B2000126012 | B142: PAGO | D142: LIQUIDADA
A143: 44971104873328C2000271011 | B143: PAGO | D143: PARCELA PAGA
A144: 4497193972586C2000283011 | B144: PAGO | D144: PARCELA PAGA
A145: 4497276709054B3000118013
A146: 4497284526284B2000222012 | B146: PAGO | D146: LIQUIDADA
A147: 4497296883475B7000223015 | B147: PAGO | D147: Cliente avisado por telefone, confirmou pagamento na data prevista
A148: 4497384203397B1000163016 | B148: PAGO | D148: LIQUIDADA
A149: 4497391023440B4000717011 | B149: PAGO | D149: LIQUIDADA
A150: 44974124252206C2000279011 | B150: PAGO | D150: Cliente avisado por telefone, confirmou pagamento na data prevista
A151: 4497433095050C2000284011 | B151: PAGO | D151: Cliente avisado por telefone, confirmou pagamento na data prevista
A152: 449744755039C2000304011 | B152: PAGO | D152: Cliente avisado por telefone, confirmou pagamento na data prevista
A153: 4497477850998B7000204017 | B153: PAGO | D153: Cliente avisado por telefone, confirmou pagamento na data prevista
A154: 44975148308042C1001170011 | D154: Cliente avisado por telefone, confirmou pagamento na data prevista
A155: 44976121131981C1000273011 | B155: PAGO | D155: LIQUIDADA
A156: 44976136506722C1000272011 | B156: PAGO | D156: LIQUIDADA
A157: 4497646740312C1000274012
A158: 4497673781957B0000205017 | B158: PAGO | D158: PARCELA PAGA
A159: 4497674181561C1000275011 | B159: PAGO | D159: LIQUIDADA
A160: 4497683695478C1000270011 | B160: PAGO | D160: LIQUIDADA
A161: 4497760688462B2000330012 | B161: PAGO | D161: LIQUIDADA
A162: 4497776994672B3000120012 | B162: PAGO | D162: PARCELA PAGA
A163: 4497779530481B4000151015
A164: 4497780681018B5000185013 | B164: PAGO | D164: PARCELA PAGA
A165: 4497884508639B2000279012 | B165: PAGO | D165: LIQUIDADA
A166: 4497891464891B2000282012 | B166: PAGO | D166: LIQUIDADA
A167: 44979113856298B9000112014
A168: 44980109993600C1000291011 | B168: PAGO | C168: NÃO - ELABORADA | D168: Boleto entregue, confirmou o pagamento na data prevista;
A169: 44980119505683C2000249011 | B169: PAGO | D169: PARCELA PAGA
A170: 44980120239512C1000289011 | B170: PAGO | D170: LIQUIDADA
A171: 44980143641991C1000301011 | B171: PAGO | D171: Boleto entregue, confirmou o pagamento na data prevista;
A172: 449804888194C1000285011 | B172: PAGO | D172: LIQUIDADA
A173: 4498052137841C2000252011 | B173: PAGO | D173: PARCELA PAGA
A174: 4498052137882C2000250011 | B174: PAGO | D174: PARCELA PAGA
A175: 44981118803931C2000265011 | B175: PAGO | D175: PARCELA PAGA
A176: 44981136353265C2000257011 | B176: PAGO | D176: PARCELA PAGA
A177: 44981142773514C2000258011 | B177: PAGO | D177: PARCELA PAGA
A178: 44981144158730C2000254011 | B178: PAGO | D178: PARCELA PAGA
A179: 44981152073490C2000278011 | B179: PAGO | D179: PARCELA PAGA
A180: 4498117640590B5000153014 | B180: PAGO | D180: LIQUIDADA
A181: 4498133093576C2000255011 | B181: PAGO | D181: PARCELA PAGA
A182: 4498145743671C2000256011 | B182: PAGO | D182: PARCELA PAGA
A183: 449814871554C2000259011 | B183: PAGO | D183: PARCELA PAGA
A184: 4498149373210C2000261011 | B184: PAGO | D184: PARCELA PAGA
A185: 449815036827C2000269011 | B185: PAGO | D185: LIQUIDADA
A186: 4498156802812C2000260011 | B186: PAGO | D186: PARCELA PAGA
A187: 4498174111998B4000879011 | B187: PAGO | D187: LIQUIDADA
A188: 4498174791427B5000181013 | B188: PAGO | D188: PARCELA PAGA
A189: 4498177015550C2000267011 | B189: PAGO | D189: PARCELA PAGA
A190: 44982112602842C1000294011 | B190: PAGO | D190: LIQUIDADA
A191: 44982118840099C1000284011 | B191: PAGO | D191: LIQUIDADA
A192: 44982120487046C1000283011 | B192: PAGO | D192: LIQUIDADA
A193: 44982131580946C1000286011 | B193: PAGO | D193: LIQUIDADA
A194: 44982131655052C2000301011 | B194: PAGO | D194: LIQUIDADA
A195: 44982133063495C1000329011 | B195: PAGO | D195: LIQUIDADA
A196: 44982152075008C2000327011 | B196: PAGO | C196: SIM - ELABORADA | D196: LIQUIDADA
A197: 44982152160420C2000300011 | B197: PAGO | D197: PARCELA PAGA
A198: 4498215238728C2000325011 | B198: PAGO | D198: Cliente avisado por telefone, confirmou pagamento na data prevista
A199: 4498218656447C2000321011 | B199: PAGO | C199: SIM - ELABORADA | D199: LIQUIDADA
A200: 4498218656561C2000318011 | B200: PAGO | C200: SIM - ELABORADA | D200: LIQUIDADA
... 1180 more rows

Sheet AUX (hidden)
A1: DIAS ATRASO | B1: POTOCOLO | C1: SITUAÇÃO | D1: NO S476? | E1: OBSERVAÇÃO
B2: OK | C2: PAGO | D2: SIM - ELABORADA
C3: RENOVADO | D3: NÃO - ELABORADA
C4: RENEGOCIADO
C5: FALECIDO
